{"text_format":"1","workbook":"xlsx","n_sheets":8,"sheets":["Modificaciones","Listas desplegables","Contenido General","Resolución","Libro 1","Libro 2","Libro 3","Libro 4"],"not_rendered":{"charts":0,"images":1,"macros":1,"external_links":0,"defined_names":508,"comments":0,"pivot_tables":0},"unopened":[],"bounds":{"document_bytes":16777216,"sheet_cells":100000,"rows_first":2000,"rows_last":500,"rows_between":2000,"halvings":0,"cell_chars":16384,"cell_head_chars":4096},"cells_cut":0,"cells_raw":0,"read":"whole","date_system":"1900"}

{"sheet":"Modificaciones","index":0,"n_rows":592,"n_cols":8,"rows_kept":592,"cut":false,"hidden":false,"merged":[[0,1,0,7],[1,6,2,7],[3,6,3,7],[6,1,6,3],[5,1,5,7],[1,3,4,5],[1,1,4,2],[8,1,8,3],[7,1,7,3],[9,1,9,3],[12,1,12,3],[6,4,6,7],[7,4,7,7],[8,4,8,7],[9,4,9,7],[10,1,10,7],[11,1,11,3],[11,6,11,7],[16,1,16,7],[14,1,14,7],[11,4,11,5],[13,4,13,5],[13,6,13,7],[13,1,13,3]]}
[]
[null," ",null,"FORMULARIO PARA RECEPCIÓN DE COMENTARIOS DE LA CIUDADANÍA Y PARTES INTERESADAS",null,null," "]
[]
[null,null,null,null,null,null,"FP-F-01"]
[null,null,null,null,null,null,"2022-07-03","V-1"]
[]
[null,"Sector: ",null,null,"Energía"]
[null,"Epígrafe:",null,null,"Por la cual se modifica el Reglamento Técnico de Instalaciones Eléctricas – RETIE"]
[null,"Fecha inicio:",null,null,"2025-10-22"]
[null,"Fecha  fin: ",null,null,"2025-11-06"]
[]
[null,"Fecha Comentario: ",null,null,null,null," "]
[null,"Datos de contacto: ",null,null,null,"Correo electrónico:"]
[null,"Nombre de la empresa o interesado:"]
[null," "]
[]
[null,"COMENTARIOS AL PROYECTOS DE MODIFICACIÓN DEL RETIE"]
[null,"No.","Primer Referente","Segundo Referente","Tercer Referente","Propone cambiar","Comentario de la propuesta","Justificación del comentario"]
[null,{"$f":"+IF(C19=\"\",\"\",1)","v":""}]
[null,{"$f":"+IF(C20=\"\",\"\",1+B19)","v":""}]
[null,{"$f":"+IF(C21=\"\",\"\",1+B20)","v":""}]
[null,""]
[null,""]
[null,""]
[null,""]
[null,""]
[null,""]
[null,""]
[null,""]
[null,""]
[null,""]
[null,""]
[null,""]
[null,""]
[null,""]
[null,""]
[null,""]
[null,""]
[null,""]
[null,""]
[null,""]
[null,""]
[null,""]
[null,""]
[null,""]
[null,""]
[null,""]
[null,""]
[null,""]
[null,""]
[null,""]
[null,""]
[null,""]
[null,""]
[null,""]
[null,""]
[null,""]
[null,""]
[null,""]
[null,""]
[null,""]
[null,""]
[null,""]
[null,""]
[null,""]
[null,""]
[null,""]
[null,""]
[null,""]
[null,""]
[null,""]
[null,""]
[null,""]
[null,""]
[null,""]
[null,""]
[null,""]
[null,""]
[null,""]
[null,""]
[null,""]
[null,""]
[null,""]
[null,""]
[null,{"$f":"+IF(C85=\"\",\"\",1+B84)","v":""}]
[null,""]
[null,""]
[null,""]
[null,""]
[null,""]
[null,""]
[null,""]
[null,""]
[null,""]
[null,""]
[null,""]
[null,""]
[null,""]
[null,""]
[null,""]
[null,""]
[null,""]
[null,""]
[null,""]
[null,""]
[null,""]
[null,""]
[null,""]
[null,""]
[null,""]
[null,""]
[null,""]
[null,""]
[null,""]
[null,""]
[null,""]
[null,""]
[null,""]
[null,""]
[null,""]
[null,""]
[null,""]
[null,""]
[null,""]
[null,""]
[null,""]
[null,""]
[null,""]
[null,""]
[null,""]
[null,""]
[null,""]
[null,""]
[null,""]
[null,""]
[null,""]
[null,""]
[null,""]
[null,""]
[null,""]
[null,""]
[null,""]
[null,""]
[null,""]
[null,""]
[null,""]
[null,""]
[null,""]
[null,{"$f":"+IF(C149=\"\",\"\",1+B148)","v":""}]
[null,""]
[null,""]
[null,""]
[null,""]
[null,""]
[null,""]
[null,""]
[null,""]
[null,""]
[null,""]
[null,""]
[null,""]
[null,""]
[null,""]
[null,""]
[null,""]
[null,""]
[null,""]
[null,""]
[null,""]
[null,""]
[null,""]
[null,""]
[null,""]
[null,""]
[null,""]
[null,""]
[null,""]
[null,""]
[null,""]
[null,""]
[null,""]
[null,""]
[null,""]
[null,""]
[null,""]
[null,""]
[null,""]
[null,""]
[null,""]
[null,""]
[null,""]
[null,""]
[null,""]
[null,""]
[null,""]
[null,""]
[null,""]
[null,""]
[null,""]
[null,""]
[null,""]
[null,""]
[null,""]
[null,""]
[null,""]
[null,""]
[null,""]
[null,""]
[null,""]
[null,""]
[null,""]
[null,""]
[null,{"$f":"+IF(C213=\"\",\"\",1+B212)","v":""}]
[null,""]
[null,""]
[null,""]
[null,""]
[null,""]
[null,""]
[null,""]
[null,""]
[null,""]
[null,""]
[null,""]
[null,""]
[null,""]
[null,""]
[null,""]
[null,""]
[null,""]
[null,""]
[null,""]
[null,""]
[null,""]
[null,""]
[null,""]
[null,""]
[null,""]
[null,""]
[null,""]
[null,""]
[null,""]
[null,""]
[null,""]
[null,""]
[null,""]
[null,""]
[null,""]
[null,""]
[null,""]
[null,""]
[null,""]
[null,""]
[null,""]
[null,""]
[null,""]
[null,""]
[null,""]
[null,""]
[null,""]
[null,""]
[null,""]
[null,""]
[null,""]
[null,""]
[null,""]
[null,""]
[null,""]
[null,""]
[null,""]
[null,""]
[null,""]
[null,""]
[null,""]
[null,""]
[null,""]
[null,{"$f":"+IF(C277=\"\",\"\",1+B276)","v":""}]
[null,""]
[null,""]
[null,""]
[null,""]
[null,""]
[null,""]
[null,""]
[null,""]
[null,""]
[null,""]
[null,""]
[null,""]
[null,""]
[null,""]
[null,""]
[null,""]
[null,""]
[null,""]
[null,""]
[null,""]
[null,""]
[null,""]
[null,""]
[null,""]
[null,""]
[null,""]
[null,""]
[null,""]
[null,""]
[null,""]
[null,""]
[null,""]
[null,""]
[null,""]
[null,""]
[null,""]
[null,""]
[null,""]
[null,""]
[null,""]
[null,""]
[null,""]
[null,""]
[null,""]
[null,""]
[null,""]
[null,""]
[null,""]
[null,""]
[null,""]
[null,""]
[null,""]
[null,""]
[null,""]
[null,""]
[null,""]
[null,""]
[null,""]
[null,""]
[null,""]
[null,""]
[null,""]
[null,""]
[null,{"$f":"+IF(C341=\"\",\"\",1+B340)","v":""}]
[null,""]
[null,""]
[null,""]
[null,""]
[null,""]
[null,""]
[null,""]
[null,""]
[null,""]
[null,""]
[null,""]
[null,""]
[null,""]
[null,""]
[null,""]
[null,""]
[null,""]
[null,""]
[null,""]
[null,""]
[null,""]
[null,""]
[null,""]
[null,""]
[null,""]
[null,""]
[null,""]
[null,""]
[null,""]
[null,""]
[null,""]
[null,""]
[null,""]
[null,""]
[null,""]
[null,""]
[null,""]
[null,""]
[null,""]
[null,""]
[null,""]
[null,""]
[null,""]
[null,""]
[null,""]
[null,""]
[null,""]
[null,""]
[null,""]
[null,""]
[null,""]
[null,""]
[null,""]
[null,""]
[null,""]
[null,""]
[null,""]
[null,""]
[null,""]
[null,""]
[null,""]
[null,""]
[null,""]
[null,{"$f":"+IF(C405=\"\",\"\",1+B404)","v":""}]
[null,""]
[null,""]
[null,""]
[null,""]
[null,""]
[null,""]
[null,""]
[null,""]
[null,""]
[null,""]
[null,""]
[null,""]
[null,""]
[null,""]
[null,""]
[null,""]
[null,""]
[null,""]
[null,""]
[null,""]
[null,""]
[null,""]
[null,""]
[null,""]
[null,""]
[null,""]
[null,""]
[null,""]
[null,""]
[null,""]
[null,""]
[null,""]
[null,""]
[null,""]
[null,""]
[null,""]
[null,""]
[null,""]
[null,""]
[null,""]
[null,""]
[null,""]
[null,""]
[null,""]
[null,""]
[null,""]
[null,""]
[null,""]
[null,""]
[null,""]
[null,""]
[null,""]
[null,""]
[null,""]
[null,""]
[null,""]
[null,""]
[null,""]
[null,""]
[null,""]
[null,""]
[null,""]
[null,""]
[null,{"$f":"+IF(C469=\"\",\"\",1+B468)","v":""}]
[null,""]
[null,""]
[null,""]
[null,""]
[null,""]
[null,""]
[null,""]
[null,""]
[null,""]
[null,""]
[null,""]
[null,""]
[null,""]
[null,""]
[null,""]
[null,""]
[null,""]
[null,""]
[null,""]
[null,""]
[null,""]
[null,""]
[null,""]
[null,""]
[null,""]
[null,""]
[null,""]
[null,""]
[null,""]
[null,""]
[null,""]
[null,{"$f":"+IF(D501=\"\",\"\",1+B500)","v":""}]
[null,""]
[null,""]
[null,""]
[null,""]
[null,""]
[null,""]
[null,""]
[null,""]
[null,""]
[null,""]
[null,""]
[null,""]
[null,""]
[null,""]
[null,""]
[null,""]
[null,""]
[null,""]
[null,""]
[null,""]
[null,""]
[null,""]
[null,""]
[null,""]
[null,""]
[null,""]
[null,""]
[null,""]
[null,""]
[null,""]
[null,""]
[null,{"$f":"+IF(D533=\"\",\"\",1+B532)","v":""}]
[null,""]
[null,""]
[null,""]
[null,""]
[null,""]
[null,""]
[null,""]
[null,""]
[null,""]
[null,""]
[null,""]
[null,""]
[null,""]
[null,""]
[null,""]
[null,""]
[null,""]
[null,""]
[null,""]
[null,""]
[null,""]
[null,""]
[null,""]
[null,""]
[null,""]
[null,""]
[null,""]
[null,""]
[null,""]
[null,""]
[null,""]
[null,""]
[null,""]
[null,""]
[null,""]
[null,""]
[null,""]
[null,""]
[null,""]
[null,""]
[null,""]
[null,""]
[null,""]
[null,""]
[null,""]
[null,""]
[null,""]
[null,""]
[null,""]
[null,""]
[null,""]
[null,""]
[null,""]
[null,""]
[null,""]
[null,""]
[null,""]
[null,""]
[null,""]

{"sheet":"Listas desplegables","index":1,"n_rows":6,"n_cols":2,"rows_kept":6,"cut":false,"hidden":true,"merged":[]}
[]
[null,"Mesas realizadas"]
[null,"Mesa 1"]
[null,"Mesa 2 - Instalaciones"]
[null,"Mesa 3 - Productos"]
[null,"Mesa 4 - Evaluación de la conformidad"]

{"sheet":"Contenido General","index":2,"n_rows":49,"n_cols":2,"rows_kept":49,"cut":false,"hidden":true,"merged":[]}
[]
[null,"ESTRUCTURA_GENERAL"]
[null,"RESOLUCIÓN"]
[null,"LIBRO_1_DISPOSICIONES_GENERALES"]
[null,"LIBRO_2_PRODUCTOS_OBJETO_DEL_RETIE"]
[null,"LIBRO_3_INSTALACIONES_OBJETO_DEL_RETIE"]
[null,"LIBRO_4_EVALUACIÓN_DE_LA_CONFORMIDAD"]
[]
[null,"LIBRO_1_DISPOSICIONES_GENERALES"]
[null,"TÍTULO_2_DEFINICIONES"]
[]
[null,"LIBRO_2_PRODUCTOS_OBJETO_DEL_RETIE"]
[null,"TÍTULO_1_OBJETO_Y_CAMPO_DE_APLICACIÓN"]
[null,"TÍTULO_2_REQUISITOS_GENERALES_PARA_LOS_PRODUCTOS_UTILIZADOS_EN_LAS_INSTALACIONES_ELÉCTRICAS"]
[null,"TÍTULO_3_REQUISITOS_ESPECÍFICOS_PARA_LOS_PRODUCTOS_UTILIZADOS_EN_LAS_INSTALACIONES_ELÉCTRICAS"]
[]
[null,"LIBRO_3_INSTALACIONES_OBJETO_DEL_RETIE"]
[null,"TÍTULO_1_CAMPO_DE_APLICACIÓN"]
[null,"CAPÍTULO_1_REQUERIMIENTOS_GENERALES_DE_LAS_INSTALACIONES_ELÉCTRICAS_TÍTULO2_A_TÍTULO17"]
[null,"CAPÍTULO_2_REQUISITOS_PARA_EL_PROCESO_DE_GENERACIÓN_TÍTULO18"]
[null,"CAPÍTULO_3_REQUISITOS_PARA_LAS_LÍNEAS_DE_TRANSMISIÓN_TÍTULO19"]
[null,"CAPÍTULO_4_REQUISITOS_PARA_LAS_REDES_DE_DISTRIBUCIÓN_TÍTULO20_A_TÍTULO21"]
[null,"CAPÍTULO_5_REQUISITOS_PARA_INSTALACIONES_DE_TRANSFORMACIÓN_SUBESTACIONES_TÍTULO22_A_TÍTULO23"]
[null,"CAPÍTULO_6_REQUISITOS_PARA_INSTALACIONES_DE_USO_FINAL_TÍTULO24_A_TÍTULO28"]
[]
[null,"LIBRO_4_EVALUACIÓN_DE_LA_CONFORMIDAD"]
[null,"TÍTULO_2_CERTIFICACIÓN_DE_PRODUCTOS_Y_DECLARACIÓN_DE_CONFORMIDAD_DEL_PROVEEDOR"]
[null,"TÍTULO_3_DEMOSTRACIÓN_DE_CONFORMIDAD_DE_INSTALACIONES"]
[null,"TÍTULO_4_CERTIFICACIÓN_DE_PERSONAS"]
[null,"TÍTULO_4_CERTIFICACIÓN_DE_PERSONAS1"]
[null,"FORMATOS_ANEXOS_RETIE"]
[]
[]
[]
[]
[]
[]
[]
[]
[]
[]
[]
[]
[]
[]
[]
[null,"Modificar"]
[null,"Eliminar"]
[null,"Agregar"]

{"sheet":"Resolución","index":3,"n_rows":25,"n_cols":2,"rows_kept":25,"cut":false,"hidden":true,"merged":[]}
[]
[null,"RESOLUCIÓN"]
[]
[null,"RESOLUCIÓN"]
[null,"CONSIDERANDO"]
[null,"RESUELVE"]
[null,"ARTÍCULO 1 - OBJETO - Literal a"]
[null,"ARTÍCULO 1 - OBJETO - Literal b"]
[null,"ARTÍCULO 1 - OBJETO - Literal c"]
[null,"ARTÍCULO 1 - OBJETO - Literal d"]
[null,"ARTÍCULO 1 - OBJETO - Literal e"]
[null,"ARTÍCULO 1 - OBJETO - Literal f"]
[null,"ARTÍCULO 2 - ÁMBITO DE APLICACIÓN"]
[null,"ARTÍCULO 3 - DISPOSICIONES TRANSITORIAS"]
[null,"ARTÍCULO 3 - DISPOSICIONES TRANSITORIAS - Literal a)"]
[null,"ARTÍCULO 3 - DISPOSICIONES TRANSITORIAS - Literal b)"]
[null,"ARTÍCULO 3 - DISPOSICIONES TRANSITORIAS - Literal c)"]
[null,"ARTÍCULO 3 - DISPOSICIONES TRANSITORIAS - Literal d)"]
[null,"ARTÍCULO 3 - DISPOSICIONES TRANSITORIAS - Literal e)"]
[null,"ARTÍCULO 3 - DISPOSICIONES TRANSITORIAS - Literal f)"]
[null,"ARTÍCULO 3 - Parágrafo 1"]
[null,"ARTÍCULO 3 - Parágrafo 2"]
[null,"ARTÍCULO 3 - Parágrafo 3"]
[null,"ARTÍCULO 3 - Parágrafo 4"]
[null,"ARTÍCULO 4 - VIGENCIA Y DEROGATORIAS. "]

{"sheet":"Libro 1","index":4,"n_rows":21,"n_cols":2,"rows_kept":21,"cut":false,"hidden":true,"merged":[]}
[]
[null,"LIBRO_1_DISPOSICIONES GENERALES"]
[]
[null,"TÍTULO_2_DEFINICIONES"]
[null,"Artículo 1.2.1. Definiciones generales - Párrafo 1."]
[null,"Artículo 1.2.1. Definiciones generales - Cuartos de subestación paquetizados o prefabricados"]
[null,"Artículo 1.2.1. Definiciones generales - Ensayo tipo destructivo"]
[null,"Artículo 1.2.1. Definiciones generales - Ensayo tipo no destructivo"]
[null,"Artículo 1.2.1. Definiciones generales - Ensayo de rutina"]
[null,"Artículo 1.2.1. Definiciones generales - Experiencia"]
[null,"Artículo 1.2.1. Definiciones generales - Instalación propia"]
[null,"Artículo 1.2.1. Definiciones generales - Límite de aproximación técnica"]
[null,"Artículo 1.2.1. Definiciones generales - Límite por arco eléctrico"]
[null,"Artículo 1.2.1. Definiciones generales - Personal no electricista"]
[null,"Artículo 1.2.1. Definiciones generales - Sitios con alta concentración de personas"]
[null,"Artículo 1.2.1. Definiciones generales - Sitios de reuniones públicas"]
[null,"Artículo 1.2.1. Definiciones generales - Transformador de servicios auxiliares"]
[null,"Artículo 1.2.1. Definiciones generales - Unidad funcional"]
[null,"Artículo 1.2.1. Definiciones generales - Unidad residencial"]
[null,"Artículo 1.2.1. Definiciones generales - Estación de enfermeras "]
[null,"Tabla 1.3.4. a. Principales símbolos gráficos."]

{"sheet":"Libro 2","index":5,"n_rows":812,"n_cols":2,"rows_kept":812,"cut":false,"hidden":true,"merged":[]}
[]
[null,"LIBRO_2_PRODUCTOS_OBJETO_DEL_RETIE"]
[]
[null,"TÍTULO_1_OBJETO_Y_CAMPO_DE_APLICACIÓN"]
[null,"Artículo 2.1.1. Objeto (párrafo 1)"]
[null,"Tabla 2.1.2.1. a. Productos objeto del RETIE (ítem 8)"]
[null,"Tabla 2.1.2.1. a. Productos objeto del RETIE (ítem 26)"]
[null,"Tabla 2.1.2.1. a. Productos objeto del RETIE (ítem 31)"]
[null,"Tabla 2.1.2.1. a. Productos objeto del RETIE (ítem 37)"]
[null,"Tabla 2.1.2.1. a. Productos objeto del RETIE (ítem 52)"]
[null,"Tabla 2.1.2.1. a. Nota"]
[null,"2.1.2.1. Productos objeto del reglamento (párrafo 2)"]
[null,"Tabla 2.1.2.1. b. Algunas partidas arancelarias"]
[null,"Tabla 2.1.2.1. b. Nota"]
[null,"2.1.2.2. Parágrafo 1 "]
[null,"2.1.2.3. Exclusiones"]
[]
[null,"TÍTULO_2_REQUISITOS_GENERALES_PARA_LOS_PRODUCTOS_UTILIZADOS_EN_LAS_INSTALACIONES_ELÉCTRICAS"]
[null,"TÍTULO 2 – REQUISITOS GENERALES PARA LOS PRODUCTOS UTILIZADOS EN LAS INSTALACIONES ELÉCTRICAS (literal d)"]
[null,"TÍTULO 2 – REQUISITOS GENERALES PARA LOS PRODUCTOS UTILIZADOS EN LAS INSTALACIONES ELÉCTRICAS (literal e)"]
[null,"TÍTULO 2 – REQUISITOS GENERALES PARA LOS PRODUCTOS UTILIZADOS EN LAS INSTALACIONES ELÉCTRICAS (literal l)"]
[]
[null,"TÍTULO_3_REQUISITOS_ESPECÍFICOS_PARA_LOS_PRODUCTOS_UTILIZADOS_EN_LAS_INSTALACIONES_ELÉCTRICAS"]
[null,"2.3.1.2. Ensayos mínimos requeridos (literal a)"]
[null,"2.3.1.2. Ensayos mínimos requeridos (literal b)"]
[null,"2.3.1.2. Ensayos mínimos requeridos (literal c)"]
[null,"2.3.1.2. Ensayos mínimos requeridos (literal d)"]
[null,"2.3.1.2. Ensayos mínimos requeridos (literal e)"]
[null,"2.3.2.2. Ensayos mínimos requeridos (literal a)"]
[null,"2.3.2.2. Ensayos mínimos requeridos (literal b)"]
[null,"2.3.2.2. Ensayos mínimos requeridos (literal c)"]
[null,"2.3.2.2. Ensayos mínimos requeridos (literal d)"]
[null,"2.3.2.2. Ensayos mínimos requeridos (literal e)"]
[null,"2.3.2.2. Ensayos mínimos requeridos (literal f)"]
[null,"2.3.2.2. Ensayos mínimos requeridos (literal g)"]
[null,"2.3.3.2. Ensayos mínimos requeridos (literal a)"]
[null,"2.3.3.2. Ensayos mínimos requeridos (literal b)"]
[null,"2.3.3.2. Ensayos mínimos requeridos (literal c)"]
[null,"2.3.3.2. Ensayos mínimos requeridos (literal e)"]
[null,"2.3.3.2. Ensayos mínimos requeridos (literal f)"]
[null,"2.3.4.1.1. Requisitos de Producto (literal d)"]
[null,"2.3.4.1.2. Ensayos mínimos requeridos (literal a)"]
[null,"2.3.4.1.2. Ensayos mínimos requeridos (literal b)"]
[null,"2.3.4.1.2. Ensayos mínimos requeridos (literal c)"]
[null,"2.3.4.1.2. Ensayos mínimos requeridos (literal d)"]
[null,"2.3.4.1.2. Ensayos mínimos requeridos (literal e)"]
[null,"2.3.4.1.2. Ensayos mínimos requeridos (literal f)"]
[null,"2.3.4.1.2. Ensayos mínimos requeridos (literal g)"]
[null,"2.3.4.1.2. Ensayos mínimos requeridos (literal h)"]
[null,"2.3.4.1.2. Ensayos mínimos requeridos (literal i)"]
[null,"2.3.4.1.2. Ensayos mínimos requeridos (literal j)"]
[null,"2.3.4.2.1. Requisitos de Producto (literal b)"]
[null,"2.3.4.2.1. Requisitos de Producto (literal d)"]
[null,"2.3.4.2.2. Ensayos mínimos requeridos (literal a)"]
[null,"2.3.4.2.2. Ensayos mínimos requeridos (literal b)"]
[null,"2.3.4.2.2. Ensayos mínimos requeridos (literal c)"]
[null,"2.3.4.2.2. Ensayos mínimos requeridos (literal d)"]
[null,"2.3.4.2.2. Ensayos mínimos requeridos (literal e)"]
[null,"2.3.4.2.2. Ensayos mínimos requeridos (literal f)"]
[null,"2.3.4.2.2. Ensayos mínimos requeridos (literal g)"]
[null,"2.3.4.2.2. Ensayos mínimos requeridos (literal h)"]
[null,"2.3.4.2.2. Ensayos mínimos requeridos (literal i)"]
[null,"2.3.4.2.2. Ensayos mínimos requeridos (literal j)"]
[null,"2.3.5.2. Ensayos mínimos requeridos (literal a)"]
[null,"2.3.5.2. Ensayos mínimos requeridos (literal b)"]
[null,"2.3.5.2. Ensayos mínimos requeridos (literal c)"]
[null,"2.3.5.2. Ensayos mínimos requeridos (literal d)"]
[null,"2.3.5.2. Ensayos mínimos requeridos (literal e)"]
[null,"2.3.5.2. Ensayos mínimos requeridos (literal f)"]
[null,"2.3.5.2. Ensayos mínimos requeridos (literal g)"]
[null,"2.3.5.2. Ensayos mínimos requeridos (literal h)"]
[null,"2.3.6.2. Ensayos mínimos requeridos (literal a)"]
[null,"2.3.6.2. Ensayos mínimos requeridos (literal b)"]
[null,"2.3.6.2. Ensayos mínimos requeridos (literal c)"]
[null,"2.3.6.2. Ensayos mínimos requeridos (literal d)"]
[null,"2.3.6.2. Ensayos mínimos requeridos (literal e)"]
[null,"2.3.6.2. Ensayos mínimos requeridos (literal f)"]
[null,"2.3.6.2. Ensayos mínimos requeridos (literal g)"]
[null,"2.3.6.2. Ensayos mínimos requeridos (literal h)"]
[null,"2.3.6.2. Ensayos mínimos requeridos (literal i)"]
[null,"2.3.6.2. Ensayos mínimos requeridos (literal j)"]
[null,"2.3.6.2. Ensayos mínimos requeridos (literal k)"]
[null,"2.3.6.2. Ensayos mínimos requeridos (literal l)"]
[null,"2.3.6.2. Ensayos mínimos requeridos (literal m)"]
[null,"2.3.6.2. Ensayos mínimos requeridos (literal n)"]
[null,"2.3.7.1.1. Requisitos de Producto (literal h)"]
[null,"2.3.7.1.2. Ensayos mínimos requeridos (literal a)"]
[null,"2.3.7.1.2. Ensayos mínimos requeridos (literal b)"]
[null,"2.3.7.1.2. Ensayos mínimos requeridos (literal c)"]
[null,"2.3.7.1.2. Ensayos mínimos requeridos (literal d)"]
[null,"2.3.7.1.2. Ensayos mínimos requeridos (literal e)"]
[null,"2.3.7.1.2. Ensayos mínimos requeridos (literal f)"]
[null,"2.3.7.1.2. Ensayos mínimos requeridos (literal g)"]
[null,"2.3.7.1.2. Ensayos mínimos requeridos (literal h)"]
[null,"2.3.7.1.2. Ensayos mínimos requeridos (literal i)"]
[null,"2.3.7.2.1. Requisitos de Producto (literal c)"]
[null,"2.3.7.2.2. Ensayos mínimos requeridos (literal a)"]
[null,"2.3.7.2.2. Ensayos mínimos requeridos (literal b)"]
[null,"2.3.7.2.2. Ensayos mínimos requeridos (literal c)"]
[null,"2.3.7.2.2. Ensayos mínimos requeridos (literal d)"]
[null,"2.3.7.2.2. Ensayos mínimos requeridos (literal e)"]
[null,"2.3.7.2.2. Ensayos mínimos requeridos (literal f)"]
[null,"2.3.7.2.2. Ensayos mínimos requeridos (literal g)"]
[null,"2.3.7.2.2. Ensayos mínimos requeridos (literal h)"]
[null,"2.3.7.2.2. Ensayos mínimos requeridos (literal i)"]
[null,"2.3.8.2. Ensayos mínimos requeridos (literal a)"]
[null,"2.3.8.2. Ensayos mínimos requeridos (literal b)"]
[null,"2.3.8.2. Ensayos mínimos requeridos (literal c)"]
[null,"2.3.8.2. Ensayos mínimos requeridos (literal d)"]
[null,"2.3.8.2. Ensayos mínimos requeridos (literal e)"]
[null,"2.3.8.2. Ensayos mínimos requeridos (literal f)"]
[null,"2.3.8.2. Ensayos mínimos requeridos (literal g)"]
[null,"2.3.8.2. Ensayos mínimos requeridos (literal h)"]
[null,"2.3.8.2. Ensayos mínimos requeridos (literal i)"]
[null,"2.3.8.2. Ensayos mínimos requeridos (literal j)"]
[null,"2.3.8.2. Ensayos mínimos requeridos (literal k)"]
[null,"2.3.9.2.1. Ensayos mínimos requerido (literal a)"]
[null,"2.3.9.2.1. Ensayos mínimos requerido (literal b)"]
[null,"2.3.9.2.1. Ensayos mínimos requerido (literal c)"]
[null,"2.3.9.2.1. Ensayos mínimos requerido (literal d)"]
[null,"2.3.9.2.1. Ensayos mínimos requerido (literal e)"]
[null,"2.3.9.2.1. Ensayos mínimos requerido (literal f)"]
[null,"2.3.9.2.1. Ensayos mínimos requerido (literal g)"]
[null,"2.3.9.2.1. Ensayos mínimos requerido (literal h)"]
[null,"2.3.9.2.4. Ensayos mínimos requerido (literal a)"]
[null,"2.3.9.2.4. Ensayos mínimos requerido (literal b)"]
[null,"2.3.9.2.4. Ensayos mínimos requerido (literal c)"]
[null,"2.3.9.2.4. Ensayos mínimos requerido (literal d)"]
[null,"2.3.9.2.4. Ensayos mínimos requerido (literal e)"]
[null,"2.3.9.2.4. Ensayos mínimos requerido (literal f)"]
[null,"2.3.9.2.4. Ensayos mínimos requerido (literal g)"]
[null,"2.3.9.2.5 Para bancos de condensadores con tensiones mayores a 1.000V y menores a 57,5 kV mayores o iguales a 3 kVAR instalados en celdas de media tensión."]
[null,"2.3.10.1. Requisitos de Producto (literal g)"]
[null,"2.3.10.2. Requisitos adicionales a los anteriores para cables y conductores aislados instalados en alimentación de ascensores, áreas con alta concentración de personas y áreas clasificadas como peligrosas, incluidas minas y túneles"]
[null,"2.3.10.3. Cables aislados de baja tensión - Párrafo 1"]
[null,"2.3.10.3.1. Ensayos mínimos requeridos (literal a)"]
[null,"2.3.10.3.1. Ensayos mínimos requeridos (literal b)"]
[null,"2.3.10.3.1. Ensayos mínimos requeridos (literal c)"]
[null,"2.3.10.3.1. Ensayos mínimos requeridos (literal d)"]
[null,"2.3.10.3.1. Ensayos mínimos requeridos (literal e)"]
[null,"2.3.10.3.1. Ensayos mínimos requeridos (literal f)"]
[null,"2.3.10.3.1. Ensayos mínimos requeridos (literal g)"]
[null,"2.3.10.3.1. Ensayos mínimos requeridos (literal h)"]
[null,"2.3.10.3.1. Ensayos mínimos requeridos (literal i)"]
[null,"2.3.10.3.1. Ensayos mínimos requeridos (literal j)"]
[null,"2.3.10.3.1. Ensayos mínimos requeridos (literal k)"]
[null,"2.3.10.3.1. Ensayos mínimos requeridos (literal l)"]
[null,"2.3.10.3.1. Ensayos mínimos requeridos (literal m)"]
[null,"2.3.10.3.1. Ensayos mínimos requeridos (literal n)"]
[null,"2.3.10.4.1. Ensayos mínimos requeridos (literal a)"]
[null,"2.3.10.4.1. Ensayos mínimos requeridos (literal b)"]
[null,"2.3.10.4.1. Ensayos mínimos requeridos (literal c)"]
[null,"2.3.10.4.1. Ensayos mínimos requeridos (literal d)"]
[null,"2.3.10.4.1. Ensayos mínimos requeridos (literal e)"]
[null,"2.3.10.4.1. Ensayos mínimos requeridos (literal f)"]
[null,"2.3.10.4.1. Ensayos mínimos requeridos (literal g)"]
[null,"2.3.10.4.1. Ensayos mínimos requeridos (literal h)"]
[null,"2.3.10.4.1. Ensayos mínimos requeridos (literal i)"]
[null,"2.3.10.4.1. Ensayos mínimos requeridos (literal j)"]
[null,"2.3.10.4.1. Ensayos mínimos requeridos (literal k)"]
[null,"2.3.10.4.1. Ensayos mínimos requeridos (literal l)"]
[null,"2.3.10.5. Cables y cordones flexibles - Párrafo 1"]
[null,"2.3.10.5.1. Ensayos mínimos requeridos (literal a)"]
[null,"2.3.10.5.1. Ensayos mínimos requeridos (literal b)"]
[null,"2.3.10.5.1. Ensayos mínimos requeridos (literal c)"]
[null,"2.3.10.5.1. Ensayos mínimos requeridos (literal d)"]
[null,"2.3.10.5.1. Ensayos mínimos requeridos (literal e)"]
[null,"2.3.10.5.1. Ensayos mínimos requeridos (literal f)"]
[null,"2.3.10.5.1. Ensayos mínimos requeridos (literal g)"]
[null,"2.3.10.5.1. Ensayos mínimos requeridos (literal h)"]
[null,"2.3.10.5.1. Ensayos mínimos requeridos (literal i)"]
[null,"2.3.10.5.1. Ensayos mínimos requeridos (literal j)"]
[null,"2.3.10.5.1. Ensayos mínimos requeridos (literal k)"]
[null,"2.3.10.5.1. Ensayos mínimos requeridos (literal l)"]
[null,"2.3.10.6.1. Ensayos mínimos requeridos (literal a)"]
[null,"2.3.10.6.1. Ensayos mínimos requeridos (literal b)"]
[null,"2.3.10.6.1. Ensayos mínimos requeridos (literal c)"]
[null,"2.3.10.6.1. Ensayos mínimos requeridos (literal d)"]
[null,"2.3.10.6.1. Ensayos mínimos requeridos (literal e)"]
[null,"2.3.10.6.1. Ensayos mínimos requeridos (literal f)"]
[null,"2.3.10.6.1. Ensayos mínimos requeridos (literal g)"]
[null,"2.3.10.6.1. Ensayos mínimos requeridos (literal h)"]
[null,"2.3.10.6.1. Ensayos mínimos requeridos (literal i)"]
[null,"2.3.10.6.1. Ensayos mínimos requeridos (literal j)"]
[null,"2.3.10.6.1. Ensayos mínimos requeridos (literal k)"]
[null,"2.3.10.6.1. Ensayos mínimos requeridos (literal l)"]
[null,"2.3.10.6.1. Ensayos mínimos requeridos (literal m)"]
[null,"2.3.10.6.1. Ensayos mínimos requeridos (literal n)"]
[null,"2.3.10.7.1. Ensayos mínimos requeridos (literal a)"]
[null,"2.3.10.7.1. Ensayos mínimos requeridos (literal b)"]
[null,"2.3.10.7.1. Ensayos mínimos requeridos (literal c)"]
[null,"2.3.10.7.1. Ensayos mínimos requeridos (literal d)"]
[null,"2.3.10.7.1. Ensayos mínimos requeridos (literal e)"]
[null,"2.3.10.7.1. Ensayos mínimos requeridos (literal f)"]
[null,"2.3.10.7.1. Ensayos mínimos requeridos (literal g)"]
[null,"2.3.10.7.1. Ensayos mínimos requeridos (literal h)"]
[null,"2.3.10.7.1. Ensayos mínimos requeridos (literal i)"]
[null,"2.3.10.7.1. Ensayos mínimos requeridos (literal j)"]
[null,"2.3.10.7.1. Ensayos mínimos requeridos (literal k)"]
[null,"2.3.10.7.1. Ensayos mínimos requeridos (literal l)"]
[null,"2.3.10.7.1. Ensayos mínimos requeridos (literal m)"]
[null,"2.3.10.7.1. Ensayos mínimos requeridos (literal n)"]
[null,"2.3.10.8.1. Ensayos mínimos requeridos (literal a)"]
[null,"2.3.10.8.1. Ensayos mínimos requeridos (literal b)"]
[null,"2.3.10.8.1. Ensayos mínimos requeridos (literal c)"]
[null,"2.3.10.8.1. Ensayos mínimos requeridos (literal d)"]
[null,"2.3.10.8.1. Ensayos mínimos requeridos (literal e)"]
[null,"2.3.10.8.1. Ensayos mínimos requeridos (literal f)"]
[null,"2.3.10.8.1. Ensayos mínimos requeridos (literal g)"]
[null,"2.3.10.8.1. Ensayos mínimos requeridos (literal h)"]
[null,"2.3.10.8.1. Ensayos mínimos requeridos (literal i)"]
[null,"2.3.10.8.1. Ensayos mínimos requeridos (literal j)"]
[null,"2.3.10.8.1. Ensayos mínimos requeridos (literal k)"]
[null,"2.3.10.8.1. Ensayos mínimos requeridos (literal l)"]
[null,"2.3.10.8.1. Ensayos mínimos requeridos (literal m)"]
[null,"2.3.10.9.1. Ensayos mínimos requeridos (literal a)"]
[null,"2.3.10.9.1. Ensayos mínimos requeridos (literal b)"]
[null,"2.3.10.9.1. Ensayos mínimos requeridos (literal c)"]
[null,"2.3.10.9.1. Ensayos mínimos requeridos (literal d)"]
[null,"2.3.10.9.1. Ensayos mínimos requeridos (literal e)"]
[null,"2.3.10.9.1. Ensayos mínimos requeridos (literal f)"]
[null,"2.3.10.9.1. Ensayos mínimos requeridos (literal g)"]
[null,"2.3.10.9.1. Ensayos mínimos requeridos (literal h)"]
[null,"2.3.10.9.1. Ensayos mínimos requeridos (literal i)"]
[null,"2.3.10.9.1. Ensayos mínimos requeridos (literal j)"]
[null,"2.3.10.9.1. Ensayos mínimos requeridos (literal k)"]
[null,"2.3.10.9.1. Ensayos mínimos requeridos (literal l)"]
[null,"2.3.10.9.1. Ensayos mínimos requeridos (literal m)"]
[null,"2.3.10.9.1. Ensayos mínimos requeridos (literal n)"]
[null,"2.3.10.9.1. Ensayos mínimos requeridos (literal o)"]
[null,"2.3.10.9.1. Ensayos mínimos requeridos (literal p)"]
[null,"2.3.10.10.1. Ensayos mínimos requeridos (literal a)"]
[null,"2.3.10.10.1. Ensayos mínimos requeridos (literal b)"]
[null,"2.3.10.10.1. Ensayos mínimos requeridos (literal c)"]
[null,"2.3.10.10.1. Ensayos mínimos requeridos (literal d)"]
[null,"2.3.10.10.1. Ensayos mínimos requeridos (literal e)"]
[null,"2.3.10.10.1. Ensayos mínimos requeridos (literal f)"]
[null,"2.3.10.10.1. Ensayos mínimos requeridos (literal g)"]
[null,"2.3.10.10.1. Ensayos mínimos requeridos (literal h)"]
[null,"2.3.10.10.1. Ensayos mínimos requeridos (literal i)"]
[null,"2.3.10.10.1. Ensayos mínimos requeridos (literal j)"]
[null,"2.3.10.10.1. Ensayos mínimos requeridos (literal k)"]
[null,"2.3.10.10.1. Ensayos mínimos requeridos (literal l)"]
[null,"2.3.10.10.1. Ensayos mínimos requeridos (literal m)"]
[null,"2.3.10.10.1. Ensayos mínimos requeridos (literal n)"]
[null,"2.3.10.10.1. Ensayos mínimos requeridos (literal o)"]
[null,"2.3.10.10.1. Ensayos mínimos requeridos (literal p)"]
[null,"2.3.10.11.1. Ensayos mínimos requeridos (literal a)"]
[null,"2.3.10.11.1. Ensayos mínimos requeridos (literal b)"]
[null,"2.3.10.11.1. Ensayos mínimos requeridos (literal c)"]
[null,"2.3.10.11.1. Ensayos mínimos requeridos (literal d)"]
[null,"2.3.10.11.1. Ensayos mínimos requeridos (literal e)"]
[null,"2.3.10.11.1. Ensayos mínimos requeridos (literal f)"]
[null,"2.3.10.11.1. Ensayos mínimos requeridos (literal g)"]
[null,"2.3.10.11.1. Ensayos mínimos requeridos (literal h)"]
[null,"2.3.10.11.1. Ensayos mínimos requeridos (literal i)"]
[null,"2.3.10.11.1. Ensayos mínimos requeridos (literal j)"]
[null,"2.3.10.11.1. Ensayos mínimos requeridos (literal k)"]
[null,"2.3.10.11.1. Ensayos mínimos requeridos (literal l)"]
[null,"2.3.10.11.1. Ensayos mínimos requeridos (literal m)"]
[null,"2.3.10.11.1. Ensayos mínimos requeridos (literal n)"]
[null,"2.3.10.11.1. Ensayos mínimos requeridos (literal o)"]
[null,"2.3.10.11.1. Ensayos mínimos requeridos (literal p)"]
[null,"2.3.10.11.1. Ensayos mínimos requeridos (literal q)"]
[null,"2.3.10.12.1. Ensayos mínimos requeridos (literal a)"]
[null,"2.3.10.12.1. Ensayos mínimos requeridos (literal b)"]
[null,"2.3.10.12.1. Ensayos mínimos requeridos (literal c)"]
[null,"2.3.10.12.1. Ensayos mínimos requeridos (literal d)"]
[null,"2.3.10.12.1. Ensayos mínimos requeridos (literal e)"]
[null,"2.3.10.12.1. Ensayos mínimos requeridos (literal f)"]
[null,"2.3.10.12.1. Ensayos mínimos requeridos (literal g)"]
[null,"2.3.10.12.1. Ensayos mínimos requeridos (literal h)"]
[null,"2.3.10.12.1. Ensayos mínimos requeridos (literal i)"]
[null,"2.3.10.12.1. Ensayos mínimos requeridos (literal j)"]
[null,"2.3.10.12.1. Ensayos mínimos requeridos (literal k)"]
[null,"2.3.10.12.1. Ensayos mínimos requeridos (literal l)"]
[null,"2.3.10.12.1. Ensayos mínimos requeridos (literal m)"]
[null,"2.3.10.13. Conductores desnudos de aluminio con sus diferentes conformaciones y aleaciones: En AAC aluminio, aleación de aluminio AAAC, compuestos ACSR, ACAR, AACSR, ACSR/COMPACT, ACSR/AW, ACSR/SD, AAC/TW, ACSR/TW, ACSS, ACSS/TW, ACCR, ACSR/TP, AAC serie 8000, ACCC-CFC y ACFR entre otros"]
[null,"2.3.10.13.1. Ensayos mínimos requeridos (literal a)"]
[null,"2.3.10.13.1. Ensayos mínimos requeridos (literal b)"]
[null,"2.3.10.13.1. Ensayos mínimos requeridos (literal c)"]
[null,"2.3.10.13.1. Ensayos mínimos requeridos (literal d)"]
[null,"2.3.10.13.1. Ensayos mínimos requeridos (literal e)"]
[null,"2.3.10.13.1. Ensayos mínimos requeridos (literal f)"]
[null,"2.3.10.13.1. Ensayos mínimos requeridos (literal g)"]
[null,"2.3.10.14.1. Ensayos mínimos requeridos (literal a)"]
[null,"2.3.10.14.1. Ensayos mínimos requeridos (literal b)"]
[null,"2.3.10.14.1. Ensayos mínimos requeridos (literal c)"]
[null,"2.3.10.15.1. Ensayos mínimos requeridos (literal a)"]
[null,"2.3.10.15.1. Ensayos mínimos requeridos (literal b)"]
[null,"2.3.10.15.1. Ensayos mínimos requeridos (literal c)"]
[null,"2.3.10.15.1. Ensayos mínimos requeridos (literal d)"]
[null,"2.3.10.15.1. Ensayos mínimos requeridos (literal e)"]
[null,"2.3.10.15.1. Ensayos mínimos requeridos (literal f)"]
[null,"2.3.11.2. Ensayos mínimos requeridos (literal a)"]
[null,"2.3.11.2. Ensayos mínimos requeridos (literal b)"]
[null,"2.3.11.2. Ensayos mínimos requeridos (literal c)"]
[null,"2.3.11.2. Ensayos mínimos requeridos (literal d)"]
[null,"2.3.11.2. Ensayos mínimos requeridos (literal e)"]
[null,"2.3.11.2. Ensayos mínimos requeridos (literal f)"]
[null,"2.3.11.2. Ensayos mínimos requeridos (literal g)"]
[null,"2.3.11.2. Ensayos mínimos requeridos (literal h)"]
[null,"2.3.11.2. Ensayos mínimos requeridos (literal i)"]
[null,"2.3.11.2. Ensayos mínimos requeridos (literal j)"]
[null,"2.3.11.2. Parágrafo 3"]
[null,"2.3.11.2. Parágrafo 4"]
[null,"2.3.12.1.1. Ensayos mínimos requerido (literal b)"]
[null,"2.3.12.1.1. Ensayos mínimos requerido (literal c)"]
[null,"2.3.12.2.1. Ensayos mínimos requerido (literal a)"]
[null,"2.3.12.2.1. Ensayos mínimos requerido (literal b)"]
[null,"2.3.12.2.1. Ensayos mínimos requerido (literal c)"]
[null,"2.3.12.2.1. Ensayos mínimos requerido (literal d)"]
[null,"2.3.12.2.1. Ensayos mínimos requerido (literal e)"]
[null,"2.3.12.2.1. Ensayos mínimos requerido (literal f)"]
[null,"2.3.12.2.1. Ensayos mínimos requerido (literal g)"]
[null,"2.3.12.2.1. Ensayos mínimos requerido (literal h)"]
[null,"2.3.12.2.1. Ensayos mínimos requerido (literal i)"]
[null,"2.3.12.2.1. Ensayos mínimos requerido (literal j)"]
[null,"2.3.12.2.2. Ensayos mínimos requerido (literal a)"]
[null,"2.3.12.2.2. Ensayos mínimos requerido (literal b)"]
[null,"2.3.12.2.2. Ensayos mínimos requerido (literal c)"]
[null,"2.3.12.2.2. Ensayos mínimos requerido (literal d)"]
[null,"2.3.12.2.2. Ensayos mínimos requerido (literal e)"]
[null,"2.3.12.2.2. Ensayos mínimos requerido (literal f)"]
[null,"2.3.12.2.2. Ensayos mínimos requerido (literal g)"]
[null,"2.3.12.2.2. Ensayos mínimos requerido (literal h)"]
[null,"2.3.12.2.2. Ensayos mínimos requerido (literal i)"]
[null,"2.3.12.2.2. Ensayos mínimos requerido (literal j)"]
[null,"2.3.13.1. Requisitos de Producto (literal b)"]
[null,"2.3.13.1. Requisitos de Producto (literal g)"]
[null,"2.3.13.2. Ensayos mínimos requeridos (literal a)"]
[null,"2.3.13.2. Ensayos mínimos requeridos (literal b)"]
[null,"2.3.13.2. Ensayos mínimos requeridos (literal c)"]
[null,"2.3.13.2. Ensayos mínimos requeridos (literal d)"]
[null,"2.3.13.2. Ensayos mínimos requeridos (literal e)"]
[null,"2.3.13.2. Ensayos mínimos requeridos (literal f)"]
[null,"2.3.13.2. Ensayos mínimos requeridos (literal g)"]
[null,"2.3.13.2. Ensayos mínimos requeridos (literal h)"]
[null,"2.3.13.2. Ensayos mínimos requeridos (literal i)"]
[null,"2.3.13.2. Ensayos mínimos requeridos (literal j)"]
[null,"2.3.13.2. Ensayos mínimos requeridos (literal k)"]
[null,"2.3.13.2. Ensayos mínimos requeridos (literal l)"]
[null,"2.3.13.2. Ensayos mínimos requeridos (literal m)"]
[null,"2.3.13.2. Ensayos mínimos requeridos (literal n)"]
[null,"2.3.14.2. Ensayos mínimos requeridos (literal a)"]
[null,"2.3.14.2. Ensayos mínimos requeridos (literal b)"]
[null,"2.3.14.2. Ensayos mínimos requeridos (literal c)"]
[null,"2.3.14.2. Ensayos mínimos requeridos (literal d)"]
[null,"2.3.14.2. Ensayos mínimos requeridos (literal e)"]
[null,"2.3.14.2. Ensayos mínimos requeridos (literal f)"]
[null,"2.3.14.2. Ensayos mínimos requeridos (literal g)"]
[null,"2.3.14.2. Ensayos mínimos requeridos (literal h)"]
[null,"2.3.14.2. Ensayos mínimos requeridos (literal i)"]
[null,"2.3.14.2. Ensayos mínimos requeridos (literal j)"]
[null,"2.3.14.2. Ensayos mínimos requeridos (literal k)"]
[null,"2.3.14.2. Ensayos mínimos requeridos (literal l)"]
[null,"2.3.15.1.1. Requisitos de producto (literal c)"]
[null,"2.3.15.1.1. Requisitos de producto (literal g)"]
[null,"2.3.15.1.2. Ensayos mínimos requeridos (literal a)"]
[null,"2.3.15.1.2. Ensayos mínimos requeridos (literal b)"]
[null,"2.3.15.1.2. Ensayos mínimos requeridos (literal c)"]
[null,"2.3.15.1.2. Ensayos mínimos requeridos (literal d)"]
[null,"2.3.15.1.2. Ensayos mínimos requeridos (literal e)"]
[null,"2.3.15.1.2. Ensayos mínimos requeridos (literal f)"]
[null,"2.3.15.2.2. Ensayos mínimos requeridos (literal a)"]
[null,"2.3.15.2.2. Ensayos mínimos requeridos (literal b)"]
[null,"2.3.15.2.2. Ensayos mínimos requeridos (literal c)"]
[null,"2.3.15.2.2. Ensayos mínimos requeridos (literal d)"]
[null,"2.3.15.2.2. Ensayos mínimos requeridos (literal e)"]
[null,"2.3.15.2.2. Ensayos mínimos requeridos (literal f)"]
[null,"2.3.15.2.2. Ensayos mínimos requeridos (literal g)"]
[null,"2.3.16.1. Requisitos de Producto (literal j)"]
[null,"2.3.16.2.1. Ensayos mínimos requerido (literal a)"]
[null,"2.3.16.2.1. Ensayos mínimos requerido (literal b)"]
[null,"2.3.16.2.1. Ensayos mínimos requerido (literal c)"]
[null,"2.3.16.2.1. Ensayos mínimos requerido (literal d)"]
[null,"2.3.16.2.1. Ensayos mínimos requerido (literal e)"]
[null,"2.3.16.2.1. Ensayos mínimos requerido (literal f)"]
[null,"2.3.16.2.1. Ensayos mínimos requerido (literal g)"]
[null,"2.3.16.2.2. Ensayos mínimos requerido (literal a)"]
[null,"2.3.16.2.2. Ensayos mínimos requerido (literal b)"]
[null,"2.3.16.2.2. Ensayos mínimos requerido (literal c)"]
[null,"2.3.16.2.2. Ensayos mínimos requerido (literal d)"]
[null,"2.3.16.2.2. Ensayos mínimos requerido (literal e)"]
[null,"2.3.16.2.2. Ensayos mínimos requerido (literal f)"]
[null,"2.3.16.2.2. Ensayos mínimos requerido (literal g)"]
[null,"2.3.16.2.2. Ensayos mínimos requerido (literal h)"]
[null,"2.3.16.2.2. Ensayos mínimos requerido (literal i)"]
[null,"2.3.16.2.2. Ensayos mínimos requerido (literal j)"]
[null,"2.3.16.2.3. Ensayos mínimos requerido (literal a)"]
[null,"2.3.16.2.3. Ensayos mínimos requerido (literal b)"]
[null,"2.3.16.2.3. Ensayos mínimos requerido (literal c)"]
[null,"2.3.16.2.3. Ensayos mínimos requerido (literal d)"]
[null,"2.3.16.2.3. Ensayos mínimos requerido (literal e)"]
[null,"2.3.16.2.3. Ensayos mínimos requerido (literal f)"]
[null,"2.3.16.2.3. Ensayos mínimos requerido (literal g)"]
[null,"2.3.16.2.3. Ensayos mínimos requerido (literal h)"]
[null,"2.3.16.2.3. Ensayos mínimos requerido (literal i)"]
[null,"2.3.16.2.3. Ensayos mínimos requerido (literal j)"]
[null,"2.3.16.2.3. Ensayos mínimos requerido (literal k)"]
[null,"2.3.16.2.3. Ensayos mínimos requerido (literal l)"]
[null,"2.3.16.2.4. Ensayos mínimos requerido (literal a)"]
[null,"2.3.16.2.4. Ensayos mínimos requerido (literal b)"]
[null,"2.3.16.2.4. Ensayos mínimos requerido (literal c)"]
[null,"2.3.16.2.4. Ensayos mínimos requerido (literal d)"]
[null,"2.3.16.2.4. Ensayos mínimos requerido (literal e)"]
[null,"2.3.16.2.4. Ensayos mínimos requerido (literal f)"]
[null,"2.3.16.2.4. Ensayos mínimos requerido (literal g)"]
[null,"2.3.16.2.4. Ensayos mínimos requerido (literal h)"]
[null,"2.3.16.2.4. Ensayos mínimos requerido (literal i)"]
[null,"2.3.16.2.4. Ensayos mínimos requerido (literal j)"]
[null,"2.3.16.2.4. Ensayos mínimos requerido (literal k)"]
[null,"2.3.16.2.4. Ensayos mínimos requerido (literal l)"]
[null,"2.3.16.2.4. Ensayos mínimos requerido (literal m)"]
[null,"2.3.16.2.4. Ensayos mínimos requerido (literal n)"]
[null,"2.3.16.2.4. Ensayos mínimos requerido (literal o)"]
[null,"2.3.16.2.4. Ensayos mínimos requerido (literal p)"]
[null,"2.3.16.2.5. Conectores para el electrodo y conductor de puesta a tierra"]
[null,"2.3.16.2.5. Ensayos mínimos requerido (literal a)"]
[null,"2.3.16.2.5. Ensayos mínimos requerido (literal b)"]
[null,"2.3.16.2.5. Ensayos mínimos requerido (literal c)"]
[null,"2.3.16.2.5. Ensayos mínimos requerido (literal d)"]
[null,"2.3.16.2.5. Ensayos mínimos requerido (literal e)"]
[null,"2.3.16.2.5. Ensayos mínimos requerido (literal f)"]
[null,"2.3.16.2.5. Ensayos mínimos requerido (literal g)"]
[null,"2.3.16.2.5. Ensayos mínimos requerido (literal h)"]
[null,"2.3.17.1.2. Ensayos mínimos requeridos (literal a)"]
[null,"2.3.17.1.2. Ensayos mínimos requeridos (literal b)"]
[null,"2.3.17.1.2. Ensayos mínimos requeridos (literal c)"]
[null,"2.3.17.1.2. Ensayos mínimos requeridos (literal d)"]
[null,"2.3.17.1.2. Ensayos mínimos requeridos (literal e)"]
[null,"2.3.17.1.2. Ensayos mínimos requeridos (literal f)"]
[null,"2.3.17.1.2. Ensayos mínimos requeridos (literal g)"]
[null,"2.3.17.1.2. Ensayos mínimos requeridos (literal h)"]
[null,"2.3.17.1.2. Ensayos mínimos requeridos (literal i)"]
[null,"2.3.17.1.2. Ensayos mínimos requeridos (literal j)"]
[null,"2.3.17.1.2. Ensayos mínimos requeridos (literal k)"]
[null,"2.3.17.1.2. Ensayos mínimos requeridos (literal l)"]
[null,"2.3.17.2.2. Ensayos mínimos requeridos (literal a)"]
[null,"2.3.17.2.2. Ensayos mínimos requeridos (literal b)"]
[null,"2.3.17.2.2. Ensayos mínimos requeridos (literal c)"]
[null,"2.3.17.2.2. Ensayos mínimos requeridos (literal d)"]
[null,"2.3.17.2.2. Ensayos mínimos requeridos (literal e)"]
[null,"2.3.17.2.2. Ensayos mínimos requeridos (literal f)"]
[null,"2.3.17.2.2. Ensayos mínimos requeridos (literal g)"]
[null,"2.3.17.2.2. Ensayos mínimos requeridos (literal h)"]
[null,"2.3.17.2.2. Ensayos mínimos requeridos (literal i)"]
[null,"2.3.17.2.2. Ensayos mínimos requeridos (literal j)"]
[null,"2.3.17.2.2. Ensayos mínimos requeridos (literal k)"]
[null,"2.3.17.2.2. Ensayos mínimos requeridos (literal l)"]
[null,"2.3.17.3.2. Ensayos mínimos requeridos (literal a)"]
[null,"2.3.17.3.2. Ensayos mínimos requeridos (literal b)"]
[null,"2.3.17.3.2. Ensayos mínimos requeridos (literal c)"]
[null,"2.3.17.3.2. Ensayos mínimos requeridos (literal d)"]
[null,"2.3.17.3.2. Ensayos mínimos requeridos (literal e)"]
[null,"2.3.17.3.2. Ensayos mínimos requeridos (literal f)"]
[null,"2.3.17.3.2. Ensayos mínimos requeridos (literal g)"]
[null,"2.3.17.3.2. Ensayos mínimos requeridos (literal h)"]
[null,"2.3.17.3.2. Ensayos mínimos requeridos (literal i)"]
[null,"2.3.18.1.2. Ensayos mínimos requeridos (literal a)"]
[null,"2.3.18.1.2. Ensayos mínimos requeridos (literal b)"]
[null,"2.3.18.1.2. Ensayos mínimos requeridos (literal c)"]
[null,"2.3.18.1.2. Ensayos mínimos requeridos (literal d)"]
[null,"2.3.18.1.2. Ensayos mínimos requeridos (literal e)"]
[null,"2.3.18.1.2. Ensayos mínimos requeridos (literal f)"]
[null,"2.3.18.1.2. Ensayos mínimos requeridos (literal g)"]
[null,"2.3.18.2.2. Ensayos mínimos requeridos (literal a)"]
[null,"2.3.18.2.2. Ensayos mínimos requeridos (literal b)"]
[null,"2.3.18.2.2. Ensayos mínimos requeridos (literal c)"]
[null,"2.3.18.2.2. Ensayos mínimos requeridos (literal d)"]
[null,"2.3.18.2.2. Ensayos mínimos requeridos (literal e)"]
[null,"2.3.18.2.2. Ensayos mínimos requeridos (literal f)"]
[null,"2.3.18.2.2. Ensayos mínimos requeridos (literal g)"]
[null,"2.3.18.2.2. Ensayos mínimos requeridos (literal h)"]
[null,"2.3.18.2.2. Ensayos mínimos requeridos (literal i)"]
[null,"2.3.18.3. Relés de protección contra sobrecargas - Párrafo 1"]
[null,"2.3.18.3.2. Ensayos mínimos requeridos (literal a)"]
[null,"2.3.18.3.2. Ensayos mínimos requeridos (literal b)"]
[null,"2.3.18.3.2. Ensayos mínimos requeridos (literal c)"]
[null,"2.3.18.3.2. Ensayos mínimos requeridos (literal d)"]
[null,"2.3.18.3.2. Ensayos mínimos requeridos (literal e)"]
[null,"2.3.18.3.2. Ensayos mínimos requeridos (literal f)"]
[null,"2.3.18.3.2. Ensayos mínimos requeridos (literal g)"]
[null,"2.3.18.3.2. Ensayos mínimos requeridos (literal h)"]
[null,"2.3.19.1.2. Ensayos mínimos requeridos (literal a)"]
[null,"2.3.19.1.2. Ensayos mínimos requeridos (literal b)"]
[null,"2.3.19.1.2. Ensayos mínimos requeridos (literal c)"]
[null,"2.3.19.1.2. Ensayos mínimos requeridos (literal d)"]
[null,"2.3.19.1.2. Ensayos mínimos requeridos (literal e)"]
[null,"2.3.19.2.1. Ensayos mínimos requeridos (literal a)"]
[null,"2.3.19.2.1. Ensayos mínimos requeridos (literal b)"]
[null,"2.3.19.2.1. Ensayos mínimos requeridos (literal c)"]
[null,"2.3.19.2.1. Ensayos mínimos requeridos (literal d)"]
[null,"2.3.19.2.1. Ensayos mínimos requeridos (literal e)"]
[null,"2.3.19.3.1. Ensayo mínimo requerido (literal a)"]
[null,"Artículo 2.3.20. Extensiones y multitomas - párrafo 1"]
[null,"2.3.20.1. Requisitos de Producto (literal e)"]
[null,"2.3.20.2. Ensayos mínimos requeridos (literal a)"]
[null,"2.3.20.2. Ensayos mínimos requeridos (literal b)"]
[null,"2.3.20.2. Ensayos mínimos requeridos (literal c)"]
[null,"2.3.20.2. Ensayos mínimos requeridos (literal d)"]
[null,"2.3.20.2. Ensayos mínimos requeridos (literal e)"]
[null,"2.3.20.2. Ensayos mínimos requeridos (literal f)"]
[null,"2.3.20.2. Ensayos mínimos requeridos (literal g)"]
[null,"2.3.20.2. Ensayos mínimos requeridos (literal h)"]
[null,"2.3.21.2.1. Ensayos mínimos requerido (literal a)"]
[null,"2.3.21.2.1. Ensayos mínimos requerido (literal b)"]
[null,"2.3.21.2.1. Ensayos mínimos requerido (literal c)"]
[null,"2.3.21.2.1. Ensayos mínimos requerido (literal d)"]
[null,"2.3.21.2.2. Ensayos mínimos requerido (literal a)"]
[null,"2.3.21.2.2. Ensayos mínimos requerido (literal b)"]
[null,"2.3.21.2.2. Ensayos mínimos requerido (literal c)"]
[null,"2.3.21.2.2. Ensayos mínimos requerido (literal d)"]
[null,"2.3.21.2.2. Ensayos mínimos requerido (literal e)"]
[null,"2.3.21.2.2. Ensayos mínimos requerido (literal f)"]
[null,"2.3.21.2.2. Ensayos mínimos requerido (literal g)"]
[null,"2.3.21.2.3. Ensayos mínimos requerido (literal a)"]
[null,"2.3.21.2.3. Ensayos mínimos requerido (literal b)"]
[null,"2.3.21.2.3. Ensayos mínimos requerido (literal c)"]
[null,"2.3.21.2.3. Ensayos mínimos requerido (literal d)"]
[null,"2.3.21.2.3. Ensayos mínimos requerido (literal e)"]
[null,"2.3.21.2.3. Ensayos mínimos requerido (literal f)"]
[null,"2.3.21.2.4. Ensayos mínimos requerido (literal a)"]
[null,"2.3.21.2.4. Ensayos mínimos requerido (literal b)"]
[null,"2.3.21.2.4. Ensayos mínimos requerido (literal c)"]
[null,"2.3.21.2.4. Ensayos mínimos requerido (literal d)"]
[null,"2.3.21.2.4. Ensayos mínimos requerido (literal e)"]
[null,"2.3.21.2.4. Ensayos mínimos requerido (literal f)"]
[null,"2.3.21.2.4. Ensayos mínimos requerido (literal g)"]
[null,"2.3.21.2.4. Ensayos mínimos requerido (literal h)"]
[null,"2.3.21.2.5. Ensayos mínimos requerido (literal a)"]
[null,"2.3.21.2.5. Ensayos mínimos requerido (literal b)"]
[null,"2.3.21.2.5. Ensayos mínimos requerido (literal c)"]
[null,"2.3.21.2.5. Ensayos mínimos requerido (literal d)"]
[null,"2.3.21.2.5. Ensayos mínimos requerido (literal e)"]
[null,"2.3.21.2.5. Ensayos mínimos requerido (literal f)"]
[null,"2.3.22.2. Ensayos mínimos requeridos (literal a)"]
[null,"2.3.22.2. Ensayos mínimos requeridos (literal b)"]
[null,"2.3.22.2. Ensayos mínimos requeridos (literal c)"]
[null,"2.3.22.2. Ensayos mínimos requeridos (literal d)"]
[null,"2.3.22.2. Ensayos mínimos requeridos (literal e)"]
[null,"2.3.22.2. Ensayos mínimos requeridos (literal f)"]
[null,"2.3.22.2. Ensayos mínimos requeridos (literal g)"]
[null,"2.3.22.2. Ensayos mínimos requeridos (literal h)"]
[null,"2.3.22.2. Ensayos mínimos requeridos (literal i)"]
[null,"2.3.22.2. Ensayos mínimos requeridos (literal j)"]
[null,"2.3.22.2. Ensayos mínimos requeridos (literal k)"]
[null,"2.3.22.2. Ensayos mínimos requeridos (literal l)"]
[null,"2.3.22.2. Ensayos mínimos requeridos (literal m)"]
[null,"2.3.22.2. Ensayos mínimos requeridos (literal n)"]
[null,"Artículo 2.3.23. Inversores - párrafo 1"]
[null,"2.3.23.2. Ensayos mínimos requeridos (literal a)"]
[null,"2.3.23.2. Ensayos mínimos requeridos (literal b)"]
[null,"2.3.23.2. Ensayos mínimos requeridos (literal c)"]
[null,"2.3.23.2. Ensayos mínimos requeridos (literal d)"]
[null,"2.3.23.2. Ensayos mínimos requeridos (literal e)"]
[null,"2.3.23.2. Ensayos mínimos requeridos (literal f)"]
[null,"2.3.23.2. Ensayos mínimos requeridos (literal g)"]
[null,"2.3.24.1.2. Ensayos mínimos requeridos (literal a)"]
[null,"2.3.24.1.2. Ensayos mínimos requeridos (literal b)"]
[null,"2.3.24.1.2. Ensayos mínimos requeridos (literal c)"]
[null,"2.3.24.1.2. Ensayos mínimos requeridos (literal d)"]
[null,"2.3.24.1.2. Ensayos mínimos requeridos (literal e)"]
[null,"2.3.24.1.2. Ensayos mínimos requeridos (literal f)"]
[null,"2.3.24.1.2. Ensayos mínimos requeridos (literal g)"]
[null,"2.3.24.1.2. Ensayos mínimos requeridos (literal h)"]
[null,"2.3.24.1.2. Ensayos mínimos requeridos (literal i)"]
[null,"2.3.24.1.2. Parágrafo 2"]
[null,"2.3.24.2. Grupos electrógenos - párrafo 1"]
[null,"2.3.24.2.2. Ensayos mínimos requeridos (literal a)"]
[null,"2.3.24.2.2. Ensayos mínimos requeridos (literal b)"]
[null,"2.3.24.2.2. Ensayos mínimos requeridos (literal c)"]
[null,"2.3.24.2.2. Ensayos mínimos requeridos (literal d)"]
[null,"2.3.24.2.2. Ensayos mínimos requeridos (literal e)"]
[null,"2.3.24.2.2. Parágrafo 1"]
[null,"Artículo 2.3.25. Paneles solares fotovoltaicos - Párrafo 1"]
[null,"2.3.25.2. Ensayos mínimos requeridos"]
[null,"2.3.25.2. Ensayos mínimos requeridos (literal a)"]
[null,"2.3.25.2. Ensayos mínimos requeridos (literal b)"]
[null,"2.3.25.2. Ensayos mínimos requeridos (literal c)"]
[null,"2.3.25.2. Ensayos mínimos requeridos (literal d)"]
[null,"2.3.25.2. Ensayos mínimos requeridos (literal e)"]
[null,"2.3.25.2. Ensayos mínimos requeridos (literal f)"]
[null,"2.3.25.2. Ensayos mínimos requeridos (literal g)"]
[null,"2.3.25.2. Ensayos mínimos requeridos (literal h)"]
[null,"2.3.25.2. Ensayos mínimos requeridos (literal i)"]
[null,"2.3.25.2. Ensayos mínimos requeridos (literal j)"]
[null,"Artículo 2.3.26. Postes y estructuras para redes de distribución y alumbrado público"]
[null,"2.3.26.1. Postes, torrecillas y en general las estructuras de soporte de redes de distribución - Párrafo 1."]
[null,"2.3.26.1.1.1. Ensayos mínimos requerido (literal a)"]
[null,"2.3.26.1.1.1. Ensayos mínimos requerido (literal b)"]
[null,"2.3.26.1.1.1. Ensayos mínimos requerido (literal c)"]
[null,"2.3.26.1.1.1. Ensayos mínimos requerido (literal d)"]
[null,"2.3.26.1.1.1. Ensayos mínimos requerido (literal e)"]
[null,"2.3.26.1.1.1. Ensayos mínimos requerido (literal f)"]
[null,"2.3.26.1.1.1. Ensayos mínimos requerido (literal g)"]
[null,"2.3.26.1.1.2. Ensayos mínimos requerido (literal a)"]
[null,"2.3.26.1.1.2. Ensayos mínimos requerido (literal b)"]
[null,"2.3.26.1.1.2. Ensayos mínimos requerido (literal c)"]
[null,"2.3.26.1.1.2. Ensayos mínimos requerido (literal d)"]
[null,"2.3.26.1.1.2. Ensayos mínimos requerido (literal e)"]
[null,"2.3.26.1.1.2. Ensayos mínimos requerido (literal f)"]
[null,"2.3.26.1.1.2. Ensayos mínimos requerido (literal g)"]
[null,"2.3.26.1.1.3. Ensayos mínimos requerido (literal a)"]
[null,"2.3.26.1.1.3. Ensayos mínimos requerido (literal b)"]
[null,"2.3.26.1.1.3. Ensayos mínimos requerido (literal c)"]
[null,"2.3.26.1.1.3. Ensayos mínimos requerido (literal d)"]
[null,"2.3.26.1.1.3. Ensayos mínimos requerido (literal e)"]
[null,"2.3.26.1.1.3. Ensayos mínimos requerido (literal f)"]
[null,"2.3.26.1.1.3. Ensayos mínimos requerido (literal g)"]
[null,"2.3.26.1.1.3. Ensayos mínimos requerido (literal h)"]
[null,"2.3.26.1.1.3. Ensayos mínimos requerido (literal i)"]
[null,"2.3.26.1.1.3. Ensayos mínimos requerido (literal j)"]
[null,"2.3.26.1.1.3. Ensayos mínimos requerido (literal k)"]
[null,"2.3.26.1.1.3. Ensayos mínimos requerido (literal l)"]
[null,"2.3.26.1.1.3. Ensayos mínimos requerido (literal m)"]
[null,"2.3.26.1.1.4. Ensayos mínimos requerido  (literal a)"]
[null,"2.3.26.1.1.4. Ensayos mínimos requerido  (literal b)"]
[null,"2.3.26.1.1.4. Ensayos mínimos requerido  (literal c)"]
[null,"2.3.26.1.1.4. Ensayos mínimos requerido  (literal d)"]
[null,"2.3.26.1.1.4. Ensayos mínimos requerido  (literal e)"]
[null,"2.3.26.1.1.4. Ensayos mínimos requerido  (literal f)"]
[null,"2.3.26.1.1.5. Ensayos mínimos requerido  (literal a)"]
[null,"2.3.26.1.1.5. Ensayos mínimos requerido  (literal b)"]
[null,"2.3.26.1.1.5. Ensayos mínimos requerido  (literal c)"]
[null,"2.3.26.1.1.5. Ensayos mínimos requerido  (literal d)"]
[null,"2.3.26.1.1.5. Ensayos mínimos requerido  (literal e)"]
[null,"2.3.26.1.1.5. Ensayos mínimos requerido  (literal f)"]
[null,"2.3.26.1.1.6. Ensayos mínimos requerido  (literal a)"]
[null,"2.3.26.1.1.6. Ensayos mínimos requerido  (literal b)"]
[null,"2.3.26.1.1.6. Ensayos mínimos requerido  (literal c)"]
[null,"2.3.26.1.1.6. Ensayos mínimos requerido  (literal d)"]
[null,"2.3.26.1.1.6. Ensayos mínimos requerido  (literal e)"]
[null,"2.3.26.1.1.6. Ensayos mínimos requerido  (literal f)"]
[null,"2.3.26.1.1.6. Ensayos mínimos requerido  (literal g)"]
[null,"2.3.26.1.1.6. Ensayos mínimos requerido  (literal h)"]
[null,"2.3.26.1.1.6. Ensayos mínimos requerido  (literal i)"]
[null,"2.3.26.1.1.6. Ensayos mínimos requerido  (literal j)"]
[null,"2.3.26.1.1.6. Ensayos mínimos requerido  (literal k)"]
[null,"2.3.26.1.1.6. Ensayos mínimos requerido  (literal l)"]
[null,"2.3.26.2.1.2. Ensayos mínimos requeridos (literal a)"]
[null,"2.3.26.2.1.2. Ensayos mínimos requeridos (literal b)"]
[null,"2.3.26.2.1.2. Ensayos mínimos requeridos (literal c)"]
[null,"2.3.26.2.1.2. Ensayos mínimos requeridos (literal d)"]
[null,"2.3.26.2.1.2. Ensayos mínimos requeridos (literal e)"]
[null,"2.3.26.2.1.2. Ensayos mínimos requeridos (literal f)"]
[null,"2.3.26.2.2.2. Ensayos mínimos requeridos (literal a)"]
[null,"2.3.26.2.2.2. Ensayos mínimos requeridos (literal b)"]
[null,"2.3.26.2.2.2. Ensayos mínimos requeridos (literal c)"]
[null,"2.3.26.2.2.2. Ensayos mínimos requeridos (literal d)"]
[null,"2.3.26.2.2.2. Ensayos mínimos requeridos (literal e)"]
[null,"2.3.26.2.2.2. Ensayos mínimos requeridos (literal f)"]
[null,"2.3.26.2.2.2. Ensayos mínimos requeridos (literal g)"]
[null,"2.3.26.2.2.2. Ensayos mínimos requeridos (literal h)"]
[null,"2.3.26.2.2.2. Ensayos mínimos requeridos (literal i)"]
[null,"2.3.26.2.2.2. Ensayos mínimos requeridos (literal j)"]
[null,"2.3.26.2.3.2. Ensayos mínimos requeridos (literal a)"]
[null,"2.3.26.2.3.2. Ensayos mínimos requeridos (literal b)"]
[null,"2.3.26.2.3.2. Ensayos mínimos requeridos (literal c)"]
[null,"2.3.26.2.3.2. Ensayos mínimos requeridos (literal d)"]
[null,"2.3.26.2.3.2. Ensayos mínimos requeridos (literal e)"]
[null,"2.3.26.2.3.2. Ensayos mínimos requeridos (literal f)"]
[null,"2.3.26.2.4.2. Ensayos mínimos requeridos (literal a)"]
[null,"2.3.26.2.4.2. Ensayos mínimos requeridos (literal b)"]
[null,"2.3.26.2.4.2. Ensayos mínimos requeridos (literal c)"]
[null,"2.3.26.2.4.2. Ensayos mínimos requeridos (literal d)"]
[null,"2.3.26.2.4.2. Ensayos mínimos requeridos (literal e)"]
[null,"2.3.26.2.4.2. Ensayos mínimos requeridos (literal f)"]
[null,"2.3.26.2.4.2. Ensayos mínimos requeridos (literal g)"]
[null,"2.3.26.2.4.2. Ensayos mínimos requeridos (literal h)"]
[null,"2.3.26.2.4.2. Ensayos mínimos requeridos (literal i)"]
[null,"2.3.26.2.4.2. Ensayos mínimos requeridos (literal j)"]
[null,"2.3.26.2.4.2. Ensayos mínimos requeridos (literal k)"]
[null,"2.3.26.2.4.2. Parágrafo 2"]
[null,"2.3.27.2. Productos eléctricos para instituciones de asistencia médica"]
[null,"2.3.28.2. Ensayos mínimos requeridos (literal a)"]
[null,"2.3.28.2. Ensayos mínimos requeridos (literal b)"]
[null,"2.3.28.2. Ensayos mínimos requeridos (literal c)"]
[null,"2.3.28.2. Ensayos mínimos requeridos (literal d)"]
[null,"2.3.28.2. Ensayos mínimos requeridos (literal e)"]
[null,"2.3.28.2. Ensayos mínimos requeridos (literal f)"]
[null,"2.3.28.2. Ensayos mínimos requeridos (literal g)"]
[null,"2.3.28.2. Ensayos mínimos requeridos (literal h)"]
[null,"2.3.28.2. Ensayos mínimos requeridos (literal i)"]
[null,"2.3.28.2. Ensayos mínimos requeridos (literal j)"]
[null,"2.3.29.1.1. Requisitos de producto (literal f)"]
[null,"2.3.29.1.2. Ensayos mínimos requeridos (literal a)"]
[null,"2.3.29.1.2. Ensayos mínimos requeridos (literal b)"]
[null,"2.3.29.1.2. Ensayos mínimos requeridos (literal c)"]
[null,"2.3.29.1.2. Ensayos mínimos requeridos (literal d)"]
[null,"2.3.29.1.2. Ensayos mínimos requeridos (literal e)"]
[null,"2.3.29.1.2. Ensayos mínimos requeridos (literal f)"]
[null,"2.3.29.1.2. Ensayos mínimos requeridos (literal g)"]
[null,"2.3.29.1.2. Ensayos mínimos requeridos (literal h)"]
[null,"2.3.29.1.2. Ensayos mínimos requeridos (literal i)"]
[null,"2.3.29.1.2. Parágrafo 1"]
[null,"2.3.29.2.2. Ensayos mínimos requeridos (literal a)"]
[null,"2.3.29.2.2. Ensayos mínimos requeridos (literal b)"]
[null,"2.3.29.2.2. Ensayos mínimos requeridos (literal c)"]
[null,"2.3.29.2.2. Ensayos mínimos requeridos (literal d)"]
[null,"2.3.29.2.2. Ensayos mínimos requeridos (literal e)"]
[null,"2.3.29.3.2. Ensayos mínimos requeridos (literal a)"]
[null,"2.3.29.3.2. Ensayos mínimos requeridos (literal b)"]
[null,"2.3.29.3.2. Ensayos mínimos requeridos (literal c)"]
[null,"2.3.29.3.2. Ensayos mínimos requeridos (literal d)"]
[null,"2.3.29.3.2. Ensayos mínimos requeridos (literal e)"]
[null,"2.3.29.3.2. Ensayos mínimos requeridos (literal f)"]
[null,"2.3.29.3.2. Ensayos mínimos requeridos (literal g)"]
[null,"2.3.29.3.2. Ensayos mínimos requeridos (literal h)"]
[null,"2.3.29.3.2. Ensayos mínimos requeridos (literal i)"]
[null,"2.3.29.3.2. Ensayos mínimos requeridos (literal j)"]
[null,"2.3.29.4.2. Ensayos mínimos requeridos (literal a)"]
[null,"2.3.29.4.2. Ensayos mínimos requeridos (literal b)"]
[null,"2.3.29.4.2. Ensayos mínimos requeridos (literal c)"]
[null,"2.3.29.4.2. Ensayos mínimos requeridos (literal d)"]
[null,"2.3.29.4.2. Ensayos mínimos requeridos (literal e)"]
[null,"2.3.29.4.2. Ensayos mínimos requeridos (literal f)"]
[null,"2.3.29.4.2. Ensayos mínimos requeridos (literal g)"]
[null,"2.3.29.4.2. Ensayos mínimos requeridos (literal h)"]
[null,"2.3.29.4.2. Ensayos mínimos requeridos (literal i)"]
[null,"2.3.29.4.2. Ensayos mínimos requeridos (literal j)"]
[null,"2.3.30.1. Requisitos de producto (literal c-subnumeral 3)"]
[null,"2.3.30.2. Ensayos mínimos requeridos (literal a)"]
[null,"2.3.30.2. Ensayos mínimos requeridos (literal b)"]
[null,"2.3.30.2. Ensayos mínimos requeridos (literal c)"]
[null,"2.3.30.2. Ensayos mínimos requeridos (literal d)"]
[null,"2.3.30.2. Ensayos mínimos requeridos (literal e)"]
[null,"2.3.30.2. Ensayos mínimos requeridos (literal f)"]
[null,"2.3.30.2. Ensayos mínimos requeridos (literal g)"]
[null,"2.3.30.2. Ensayos mínimos requeridos (literal h)"]
[null,"2.3.30.2. Ensayos mínimos requeridos (literal i)"]
[null,"2.3.31.1. Requisitos para la envolvente o encerramiento para tableros y celdas (literal i)"]
[null,"2.3.31.2.3. Ensayos mínimos requeridos (literal a)"]
[null,"2.3.31.2.3. Ensayos mínimos requeridos (literal b)"]
[null,"2.3.31.2.3. Ensayos mínimos requeridos (literal c)"]
[null,"2.3.31.2.3. Ensayos mínimos requeridos (literal d)"]
[null,"2.3.31.2.3. Ensayos mínimos requeridos (literal e)"]
[null,"2.3.31.2.3. Ensayos mínimos requeridos (literal f)"]
[null,"2.3.31.2.3. Ensayos mínimos requeridos (literal g)"]
[null,"2.3.31.2.3. Ensayos mínimos requeridos (literal h)"]
[null,"2.3.31.2.3. Ensayos mínimos requeridos (literal i)"]
[null,"2.3.31.2.3. Ensayos mínimos requeridos (literal j)"]
[null,"2.3.31.2.3. Ensayos mínimos requeridos (literal k)"]
[null,"2.3.31.2.3. Ensayos mínimos requeridos (literal l)"]
[null,"2.3.31.2.3. Ensayos mínimos requeridos (literal m)"]
[null,"2.3.31.2.3. Ensayos mínimos requeridos (literal n)"]
[null,"2.3.31.2.3. Ensayos mínimos requeridos (literal o)"]
[null,"2.3.31.2.3. Ensayos mínimos requeridos (literal p)"]
[null,"2.3.31.2.3. Ensayos mínimos requeridos (literal q)"]
[null,"2.3.31.2.3. Ensayos mínimos requeridos (literal r)"]
[null,"2.3.31.2.3. Ensayos mínimos requeridos (literal s)"]
[null,"2.3.31.3.1. Requisitos de Producto (literal a)"]
[null,"2.3.31.4.1. Requisitos de Producto (literal g)"]
[null,"2.3.31.4.2. Ensayos mínimos requeridos (literal a)"]
[null,"2.3.31.4.2. Ensayos mínimos requeridos (literal b)"]
[null,"2.3.31.4.2. Ensayos mínimos requeridos (literal c)"]
[null,"2.3.31.4.2. Ensayos mínimos requeridos (literal d)"]
[null,"2.3.31.4.2. Ensayos mínimos requeridos (literal e)"]
[null,"2.3.31.4.2. Ensayos mínimos requeridos (literal f)"]
[null,"2.3.31.4.2. Ensayos mínimos requeridos (literal g)"]
[null,"2.3.31.4.2. Ensayos mínimos requeridos (literal h)"]
[null,"2.3.31.4.2. Ensayos mínimos requeridos (literal i)"]
[null,"2.3.31.4.2. Ensayos mínimos requeridos (literal j)"]
[null,"2.3.31.4.2. Ensayos mínimos requeridos (literal k)"]
[null,"2.3.31.4.2. Ensayos mínimos requeridos (literal l)"]
[null,"2.3.32.2.1. Ensayos mínimos requerido  (literal a)"]
[null,"2.3.32.2.1. Ensayos mínimos requerido  (literal b)"]
[null,"2.3.32.2.1. Ensayos mínimos requerido  (literal c)"]
[null,"2.3.32.2.1. Ensayos mínimos requerido  (literal d)"]
[null,"2.3.32.2.1. Ensayos mínimos requerido  (literal e)"]
[null,"2.3.32.2.1. Ensayos mínimos requerido  (literal f)"]
[null,"2.3.32.2.1. Ensayos mínimos requerido  (literal g)"]
[null,"2.3.32.2.1. Ensayos mínimos requerido  (literal h)"]
[null,"2.3.32.2.1. Ensayos mínimos requerido  (literal i)"]
[null,"2.3.32.2.1. Ensayos mínimos requerido  (literal j)"]
[null,"2.3.32.2.1. Ensayos mínimos requerido  (literal k)"]
[null,"2.3.32.2.1. Ensayos mínimos requerido  (literal l)"]
[null,"2.3.32.2.1. Ensayos mínimos requerido  (literal m)"]
[null,"2.3.32.2.1. Ensayos mínimos requerido  (literal n)"]
[null,"2.3.32.2.1. Ensayos mínimos requerido  (literal o)"]
[null,"2.3.32.2.2. Ensayos mínimos requerido  (literal a)"]
[null,"2.3.32.2.2. Ensayos mínimos requerido  (literal b)"]
[null,"2.3.32.2.2. Ensayos mínimos requerido  (literal c)"]
[null,"2.3.32.2.2. Ensayos mínimos requerido  (literal d)"]
[null,"2.3.32.2.2. Ensayos mínimos requerido  (literal e)"]
[null,"2.3.32.2.2. Ensayos mínimos requerido  (literal f)"]
[null,"2.3.32.2.2. Ensayos mínimos requerido  (literal g)"]
[null,"2.3.32.2.2. Ensayos mínimos requerido  (literal h)"]
[null,"2.3.32.2.2. Ensayos mínimos requerido  (literal i)"]
[null,"2.3.32.2.2. Ensayos mínimos requerido  (literal j)"]
[null,"2.3.32.2.2. Ensayos mínimos requerido  (literal k)"]
[null,"2.3.32.2.3. Ensayos mínimos requerido  (literal a)"]
[null,"2.3.32.2.3. Ensayos mínimos requerido  (literal b)"]
[null,"2.3.32.2.3. Ensayos mínimos requerido  (literal c)"]
[null,"2.3.32.2.3. Ensayos mínimos requerido  (literal d)"]
[null,"2.3.32.2.3. Ensayos mínimos requerido  (literal e)"]
[null,"2.3.32.2.3. Ensayos mínimos requerido  (literal f)"]
[null,"2.3.32.2.3. Ensayos mínimos requerido  (literal g)"]
[null,"2.3.32.2.3. Ensayos mínimos requerido  (literal h)"]
[null,"2.3.32.2.3. Ensayos mínimos requerido  (literal i)"]
[null,"2.3.32.2.3. Ensayos mínimos requerido  (literal j)"]
[null,"2.3.32.2.3. Ensayos mínimos requerido  (literal k)"]
[null,"2.3.32.2.3. Ensayos mínimos requerido  (literal l)"]
[null,"Artículo 2.3.33. Unidades de tensión regulada, reguladores de tensión o controladores de tensión - párrafo 1"]
[null,"2.3.33.1. Requisitos de producto (literal a)"]
[null,"2.3.33.2. Ensayos mínimos requeridos (literal a)"]
[null,"2.3.33.2. Ensayos mínimos requeridos (literal b)"]
[null,"2.3.33.2. Ensayos mínimos requeridos (literal c)"]
[null,"2.3.33.2. Ensayos mínimos requeridos (literal d)"]
[null,"2.3.33.2. Ensayos mínimos requeridos (literal e)"]
[null,"2.3.33.2. Ensayos mínimos requeridos (literal f)"]
[null,"2.3.33.2. Ensayos mínimos requeridos (literal g)"]

{"sheet":"Libro 3","index":6,"n_rows":128,"n_cols":2,"rows_kept":128,"cut":false,"hidden":true,"merged":[]}
[]
[null,"LIBRO_3_INSTALACIONES_OBJETO_DEL_RETIE"]
[]
[]
[null,"TÍTULO_1_CAMPO_DE_APLICACIÓN"]
[null,"Artículo 3.1.1. Instalaciones eléctricas  objeto de RETIE"]
[null,"Artículo 3.1.1. Instalaciones eléctricas - Párrafo 1"]
[null,"Tabla 3.1.1.a Instalaciones objeto de RETIE."]
[null,"Tabla 3.1.1.a Nota 1"]
[null,"3.1.1.3. Exclusiones en instalaciones (literal d)"]
[]
[null,"CAPÍTULO_1_REQUERIMIENTOS_GENERALES_DE_LAS_INSTALACIONES_ELÉCTRICAS_TÍTULO2_A_TÍTULO17"]
[null,"Artículo 3.2.2. Responsabilidad de los constructores (literal e)"]
[null,"Artículo 3.2.2. Parágrafo 3"]
[null,"Artículo 3.2.2. Parágrafo 4"]
[null,"Artículo 3.2.3. Responsabilidad del diseñador (párrafo 3)"]
[null,"TÍTULO 3 – DISEÑO DE LAS INSTALACIONES ELÉCTRICAS (párrafo 1)"]
[null,"Artículo 3.3.1. Instalaciones eléctricas que requieren diseño (párrafo 1)"]
[null,"Artículo 3.3.1. Instalaciones eléctricas que requieren diseño (literal a)"]
[null,"Artículo 3.3.1. Instalaciones eléctricas que requieren diseño (literal b)"]
[null,"Artículo 3.3.1. Instalaciones eléctricas que requieren diseño (literal c)"]
[null,"Artículo 3.3.1. Instalaciones eléctricas que requieren diseño (literal d)"]
[null,"Artículo 3.3.1. Instalaciones eléctricas que requieren diseño (literal e)"]
[null,"Artículo 3.3.1. Instalaciones eléctricas que requieren diseño (literal f)"]
[null,"Artículo 3.3.1. Instalaciones eléctricas que requieren diseño (literal g)"]
[null,"Artículo 3.3.1. Instalaciones eléctricas que requieren diseño (literal h)"]
[null,"Artículo 3.3.1. Instalaciones eléctricas que requieren diseño (literal i)"]
[null,"Artículo 3.3.1. Instalaciones eléctricas que requieren diseño (literal j)"]
[null,"Artículo 3.3.1. Instalaciones eléctricas que requieren diseño (literal k)"]
[null,"Artículo 3.3.1. Instalaciones eléctricas que requieren diseño (literal l)"]
[null,"Artículo 3.3.1. Instalaciones eléctricas que requieren diseño (literal m)"]
[null,"Artículo 3.3.1. Instalaciones eléctricas que requieren diseño (literal n)"]
[null,"Artículo 3.3.1. Instalaciones eléctricas que requieren diseño (literal o)"]
[null,"Artículo 3.3.1. Instalaciones eléctricas que requieren diseño (literal p)"]
[null,"Artículo 3.3.1. Instalaciones eléctricas que requieren diseño (literal q)"]
[null,"3.3.1.2. Diseño básico - (literal a)"]
[null,"3.3.1.2 Diseño básico – (literal c)"]
[null,"3.3.1.2. Parágrafo 1"]
[null,"TÍTULO 5 – CÓDIGO DE COLORES PARA CONDUCTORES DE USO ELÉCTRICO (**Nota 2)"]
[null,"TÍTULO 9 – CLASIFICACIÓN DE LOS NIVELES DE TENSIÓN (literal d)"]
[null,"TÍTULO 10 – DISTANCIAS DE SEGURIDAD (Nota 9)"]
[null,"TÍTULO 10 – DISTANCIAS DE SEGURIDAD (Nota 10)"]
[null,"Tabla 3.10.2. a. Distancias mínimas de seguridad para diferentes situaciones"]
[null,"Artículo 3.10.5. Distancias mínimas para trabajos en o cerca de partes energizadas (literal e)"]
[null,"Artículo 3.11.1. Valores límites de exposición a campos electromagnéticos - Párrafo 1"]
[null,"Artículo 3.12.1. Requisitos generales del sistema de puesta a tierra - literal d"]
[null,"Artículo 3.12.3. Parágrafo 1."]
[null,"3.12.4.3. Medición de tensiones de paso y contacto (párrafo 1)"]
[null,"3.12.4.3. Medición de tensiones de paso y contacto (literal b)"]
[null,"3.12.4.3. Parágrafo 1"]
[null,"3.12.6.1 Pruebas (literal c)"]
[null,"Artículo 3.17.1. Aerogeneradores (literal t)"]
[null,"Artículo 3.17.3. Baterías o sistemas de acumulación de energía eléctrica (literal a)"]
[null,"Artículo 3.17.3. Baterías o sistemas de acumulación de energía eléctrica (literal f)"]
[null,"Artículo 3.17.4. Bovedas (literal c)"]
[null,"Artículo 3.17.4. Bóvedas (literal f)"]
[null,"3.17.6.3. Canalizaciones eléctricas prefabricadas o electroductos. (literal f)"]
[null,"Artículo 3.17.10. Clavijas y tomacorrientes (literal k)"]
[null,"Artículo 3.17.13. Conductores aislados (literal i)"]
[null,"Artículo 3.17.13. Conductores aislados (literal j)"]
[null,"Artículo 3.17.13. Conductores aislados (literal k)"]
[null,"Artículo 3.17.13. Conductores aislados (literal l)"]
[null,"Artículo 3.17.13. Conductores aislados (literal l - Subnumeral 1)"]
[null,"Artículo 3.17.13. Conductores aislados (literal l - Subnumeral 1 - IV)"]
[null,"Artículo 3.17.13. Parágrafo 1"]
[null,"Artículo 3.17.14. Dispositivos de protección contra sobretensiones transitorias – DPS (literal a)"]
[null,"Artículo 3.17.14. Dispositivos de protección contra sobretensiones transitorias – DPS (literal b)"]
[null,"Artículo 3.17.16. Elementos de conexión (conectores, terminales, empalmes y bornes para conductores eléctricos) (literal b)"]
[null,"Artículo 3.17.19. Interruptores automáticos de baja tensión (literal e)"]
[null,"Artículo 3.17.20. Interruptores manuales de baja tensión (literal f)"]
[null,"Artículo 3.17.21. Inversores (literal b)"]
[null,"Artículo 3.17.21. Inversores (literal h)"]
[null,"Artículo 3.17.21. Inversores (literal j)"]
[null,"Artículo 3.17.23. Paneles solares fotovoltaicos - (párrafo 1)"]
[null,"Artículo 3.17.23. Paneles solares fotovoltaicos (literal a)"]
[null,"Artículo 3.17.23. Paneles solares fotovoltaicos (literal n - subnumeral 3)"]
[null,"Artículo 3.17.23. Paneles solares fotovoltaicos (literal t)"]
[null,"Artículo 3.17.28. Transformadores de potencia y distribución (literal v)"]
[null,"Artículo 3.17.28. Transformadores de potencia y distribución (literal x)"]
[null,"Artículo 3.17.28. Parágrafo 1"]
[null,"Artículo 3.17.29. Unidades de potencia ininterrumpida – UPS (literal h)"]
[]
[null,"CAPÍTULO_2_REQUISITOS_PARA_EL_PROCESO_DE_GENERACIÓN_TÍTULO18"]
[null,"CAPÍTULO_2_REQUISITOS_PARA_EL_PROCESO_DE_GENERACIÓN_TÍTULO18 (párrafo 5)"]
[null,"CAPÍTULO_2_REQUISITOS_PARA_EL_PROCESO_DE_GENERACIÓN_TÍTULO18 (párrafo 6)"]
[null,"Artículo 3.18.1. Edificaciones de centrales de generación (literal a)"]
[null,"Artículo 3.18.1. Edificaciones de centrales de generación (literal u)"]
[null,"3.18.1.4. Otras estructuras asociadas a la central de generación (párrafo 1)"]
[]
[null,"CAPÍTULO_3_REQUISITOS_PARA_LAS_LÍNEAS_DE_TRANSMISIÓN_TÍTULO19"]
[null,"Artículo 3.19.1. Zonas de servidumbre (literal c)"]
[]
[null,"CAPÍTULO_4_REQUISITOS_PARA_LAS_REDES_DE_DISTRIBUCIÓN_TÍTULO20_A_TÍTULO21"]
[null,"Artículo 3.20.2. Requisitos básicos de operación y mantenimiento para redes de distribución (literal a)"]
[null,"3.20.6.2 Cables cubiertos (literal f)"]
[null,"3.20.6.2 Cables cubiertos (literal h)"]
[null,"3.20.6.3 Conductores subterráneos (literal r)"]
[]
[null,"CAPÍTULO_5_REQUISITOS_PARA_INSTALACIONES_DE_TRANSFORMACIÓN_SUBESTACIONES_TÍTULO22_A_TÍTULO23"]
[null,"Artículo 3.22.3. Salas de operaciones, mando y control (literal b)"]
[null,"Artículo 3.22.3. Salas de operaciones, mando y control (literal j)"]
[null,"Artículo 3.23.3. Subestaciones tipo poste (literal g)"]
[null,"Artículo 3.23.4. Subestaciones tipo pedestal o tipo jardín (literal e)"]
[]
[null,"CAPÍTULO_6_REQUISITOS_PARA_INSTALACIONES_DE_USO_FINAL_TÍTULO24_A_TÍTULO28"]
[null,"TÍTULO 24 – APLICACIÓN DE NORMAS TÉCNICAS  (párrafo 1)"]
[null,"Figura 3.25. a. Esquema indicativo del régimen de conexión a tierra TN-C-S."]
[null,"TÍTULO 26 – ACOMETIDAS (párrafo 1)"]
[null,"TÍTULO 26 – ACOMETIDAS (literal d)"]
[null,"Artículo 3.27.2. Medidas de protección contra falla de aislamiento (literal d)"]
[null,"Artículo 3.27.3. Protecciones contra sobretensiones (literal c)"]
[null,"Artículo 3.27.3. Protecciones contra sobretensiones (literal h)"]
[null,"Artículo 3.28.1. Artículo 3.28.1. Instalaciones básicas - (literal p)"]
[null,"Artículo 3.28.1. Parágrafo 2"]
[null,"Artículo 3.28.1. Parágrafo 3"]
[null,"Artículo 3.28.3. Instalaciones especiales (párrafo 1)"]
[null,"Artículo 3.28.3.Parágrafo 1"]
[null,"3.28.3.2 Instituciones de asistencia médica (literal n)"]
[null,"3.28.3.2 Instituciones de asistencia médica (literal q)"]
[null,"3.28.3.2 Instituciones de asistencia médica (literal y)"]
[null,"3.28.3.2 Instituciones de asistencia médica (literal z)"]
[null,"3.28.3.2 Parágrafo 2"]
[null,"3.28.4.2 Parágrafo 1"]
[null,"3.28.4.6 Piscinas, fuentes e instalaciones similares (literal f)"]
[null,"3.28.4.7 Bombas contra incendio (literal d)"]
[null,"3.28.4.7 Parágrafo 1"]
[null,"3.28.5.2 Instalaciones definitias en túneles y cavernas (literal q)"]
[null,"3.28.5.2 Instalaciones definitias en túneles y cavernas (literal s)"]

{"sheet":"Libro 4","index":7,"n_rows":104,"n_cols":2,"rows_kept":104,"cut":false,"hidden":true,"merged":[]}
[]
[null,"LIBRO_4_EVALUACIÓN_DE_LA_CONFORMIDAD"]
[]
[]
[null,"TÍTULO_1_– _PROCEDIMIENTO_DE_EVALUACIÓN_DE_LA_CONFORMIDAD"]
[null,"TÍTULO 2 – CERTIFICACIÓN DE PRODUCTOS Y DECLARACIÓN DE CONFORMIDAD DEL PROVEEDOR (párrafo 2)"]
[null,"TÍTULO 2 – CERTIFICACIÓN DE PRODUCTOS Y DECLARACIÓN DE CONFORMIDAD DEL PROVEEDOR (literal e)"]
[null,"Artículo 4.2.1. Alternativas válidas para la expedición de certificación o declaración de conformidad del proveedor (literal c)"]
[null,"Artículo 4.2.1. Alternativas válidas para la expedición de certificación o declaración de conformidad del proveedor (numeral 10)"]
[null,"Artículo 4.2.1. Parágrafo 2"]
[null,"Artículo 4.2.2. Familias de producto (párrafo 2)"]
[null,"Artículo 4.2.2. Familias de producto (párrafo 3)"]
[null,"Tabla 4.2.2.a Familias y subfamilia de producto - Item 1"]
[null,"Tabla 4.2.2.a Familias y subfamilia de producto - Item 2"]
[null,"Tabla 4.2.2.a Familias y subfamilia de producto - Item 3"]
[null,"Tabla 4.2.2.a Familias y subfamilia de producto - Item 4"]
[null,"Tabla 4.2.2.a Familias y subfamilia de producto - Item 6"]
[null,"Tabla 4.2.2.a Familias y subfamilia de producto - Item 7"]
[null,"Tabla 4.2.2.a Familias y subfamilia de producto - Item 8"]
[null,"Tabla 4.2.2.a Familias y subfamilia de producto - Item 9"]
[null,"Tabla 4.2.2.a Familias y subfamilia de producto - Item 10"]
[null,"Tabla 4.2.2.a Familias y subfamilia de producto - Item 11"]
[null,"Tabla 4.2.2.a Familias y subfamilia de producto - Item 12"]
[null,"Tabla 4.2.2.a Familias y subfamilia de producto - Item 13"]
[null,"Tabla 4.2.2.a Familias y subfamilia de producto - Item 15"]
[null,"Tabla 4.2.2.a Familias y subfamilia de producto - Item 17"]
[null,"Tabla 4.2.2.a Familias y subfamilia de producto - Item 18"]
[null,"Tabla 4.2.2.a Familias y subfamilia de producto - Item 19"]
[null,"Tabla 4.2.2.a Familias y subfamilia de producto - Item 20"]
[null,"Tabla 4.2.2.a Familias y subfamilia de producto - Item 21"]
[null,"Tabla 4.2.2.a Familias y subfamilia de producto - Item 22"]
[null,"Tabla 4.2.2.a Familias y subfamilia de producto - Item 23"]
[null,"Tabla 4.2.2.a Familias y subfamilia de producto - Item 24"]
[null,"Tabla 4.2.2.a Familias y subfamilia de producto - Item 25"]
[null,"Tabla 4.2.2.a Familias y subfamilia de producto - Item 27"]
[null,"Tabla 4.2.2.a Familias y subfamilia de producto - Item 29"]
[null,"Tabla 4.2.2.a Familias y subfamilia de producto - Item 31"]
[null,"Tabla 4.2.2.a Familias y subfamilia de producto - Item 32"]
[null,"Tabla 4.2.2.a Familias y subfamilia de producto - Item 34"]
[null,"Tabla 4.2.2.a Familias y subfamilia de producto - Item 35"]
[null,"Tabla 4.2.2.a Familias y subfamilia de producto - Item 38"]
[null,"Tabla 4.2.2.a Familias y subfamilia de producto - Item 39"]
[null,"Tabla 4.2.2.a Familias y subfamilia de producto - Item 40"]
[null,"Tabla 4.2.2.a Familias y subfamilia de producto - Item 41"]
[null,"Tabla 4.2.2.a Familias y subfamilia de producto - Item 42"]
[null,"Tabla 4.2.2.a Familias y subfamilia de producto - Item 43"]
[null,"Tabla 4.2.2.a Familias y subfamilia de producto - Item 44"]
[null,"Tabla 4.2.2.a Familias y subfamilia de producto - Item 45"]
[null,"Tabla 4.2.2.a Familias y subfamilia de producto - Item 46"]
[null,"Tabla 4.2.2.a Familias y subfamilia de producto - Item 47"]
[null,"Tabla 4.2.2.a Familias y subfamilia de producto - Item 48"]
[null,"Tabla 4.2.2.a Familias y subfamilia de producto - Item 49"]
[null,"Tabla 4.2.2.a Familias y subfamilia de producto - Item 50"]
[null,"Tabla 4.2.2.a Familias y subfamilia de producto - Item 51"]
[null,"Artículo 4.2.3. Contenido mínimo del certificado de producto (literal e)"]
[null,"Artículo 4.2.3. Contenido mínimo del certificado de producto (literal j)"]
[null,"Artículo 4.2.4. Realización de pruebas y ensayos Párrafo 1"]
[null,"Artículo 4.2.4. Realización de pruebas y ensayos Párrafo 3"]
[null,"Artículo 4.2.4. Realización de pruebas y ensayos Párrafo 4"]
[null,"Artículo 4.2.4. Realización de pruebas y ensayos Párrafo 6"]
[null,"Artículo 4.2.4. Parágrafo 1 "]
[null,"Artículo 4.2.7. Esquemas de certificación para demostrar la conformidad de productos (literal d)"]
[null,"4.2.7.1. Certificación de Lotes - Esquema 1B RETIE (literal a - subnumeral 1 y 2)"]
[null,"4.2.7.3. Esquema 5 RETIE (literal b)"]
[null,"4.2.7.3. Esquema 5 RETIE (literal c)"]
[null,"4.2.7.3. Esquema 5 RETIE (literal m)"]
[null,"4.2.7.3. Esquema 5 RETIE - Parágrafo 2"]
[]
[]
[null,"TÍTULO 3 – DEMOSTRACIÓN DE CONFORMIDAD DE INSTALACIONES - PÁRRAFO 3"]
[null,"TÍTULO 3 – DEMOSTRACIÓN DE CONFORMIDAD DE INSTALACIONES - párrafo 4"]
[null,"Artículo 4.3.1. Inspección con fines de certificación (literal h)"]
[null,"Artículo 4.3.1. Inspección con fines de certificación (literal l)"]
[null,"4.3.2.1. Construcciones Nuevas (literal b)"]
[null,"4.3.2.1. Construcciones Nuevas (literal h)"]
[null,"4.3.2.1. Construcciones Nuevas (literal j)"]
[null,"Artículo 4.3.2.2. Parágrafo 2"]
[null,"Artículo 4.3.3. Responsabilidad y oportunidad de Organismos de inspección y Laboratoratorio de calibración (literal d)"]
[null,"Artículo 4.3.4. Revisión de las instalaciones  (párrafo 1)"]
[null,"Artículo 4.3.4. Revisión de las instalaciones  (literal b)"]
[null,"Artículo 4.3.4. Revisión de las instalaciones  (literal c)"]
[null,"Artículo 4.3.4. Revisión de las instalaciones  (literal d)"]
[null,"Artículo 4.3.4. Parágrafo 1"]
[null,"4.3.6.2. Declaración de cumplimiento de la construcción."]
[null,"4.3.6.3. Declaración de cumplimiento de operación y mantenimiento."]
[null,"4.3.8.2 Construcción (literal h)"]
[null,"4.3.8.2 Construcción (literal i)"]
[null,"4.3.8.2 Construcción (literal j)"]
[null,"4.3.8.3 Operación y mantenimiento (literal b)"]
[null,"4.3.8.3 Operación y mantenimiento (literal c)"]
[null,"4.3.8.3 Operación y mantenimiento (literal d)"]
[null,"4.3.8.3 Operación y mantenimiento (literal e)"]
[null,"4.3.8.3 Operación y mantenimiento (literal f)"]
[null,"4.3.8.3 Parágrafo 1"]
[]
[null,"TÍTULO_4_CERTIFICACIÓN_DE_PERSONAS"]
[null,"4.4.2.5. Prerrequisitos (literal a)"]
[]
[null,"TÍTULO_4_CERTIFICACIÓN_DE_PERSONAS1"]
[null,"ANEXO_1._Formato_para_dictamen_de_inspección_Generación."]
[null,"ANEXO_2._Formato_para_dictamen_de_inspección_líneas_de_transmisión."]
[null,"ANEXO_3._Formato_para_dictamen_de_inspección_distribución."]
[null,"ANEXO_4._Formato_para_dictamen_de_inspección_transformación."]
[null,"ANEXO_5._Formato_para_dictamen_de_inspección_uso_final."]